Organisation Name,Organisation Code,Effective Date,Directorate,Service Category,Service Category URI,Supplier Name,Payment Date,Transaction Number,Net Amount,Irrecoverable VAT,Purpose_of_the_expenditure,Merchant Category
Wyre Council,http://opendatacommunities.org/doc/district-council/wyre,30/12/2019,Resources,Housing General Fund,134A,KEY TO INDEPENDENCE LTD,20/12/2019,RS125890,327.70,0.00,REDACT,1 BCF Tranche 1 - Supportive Discharge
Wyre Council,http://opendatacommunities.org/doc/district-council/wyre,30/12/2019,Resources,Housing General Fund,134A,KEY TO INDEPENDENCE LTD,20/12/2019,RS125891,307.95,0.00,REDACT,1 BCF Tranche 1 - Supportive Discharge
Wyre Council,http://opendatacommunities.org/doc/district-council/wyre,30/12/2019,Resources,Housing General Fund,134A,KEY TO INDEPENDENCE LTD,20/12/2019,RS125892,158.95,0.00,REDACT,1 BCF Tranche 1 - Supportive Discharge
Wyre Council,http://opendatacommunities.org/doc/district-council/wyre,30/12/2019,Resources,Housing General Fund,134A,KEY TO INDEPENDENCE LTD,20/12/2019,RS125893,296.70,0.00,REDACT,1 BCF Tranche 1 - Supportive Discharge
Wyre Council,http://opendatacommunities.org/doc/district-council/wyre,30/12/2019,People and Places,Cultural and Related Services,132A,BLACKPOOL COUNCIL,19/12/2019,PE125904,1800.00,0.00,Double Page Advertorial in the Visit Blackpool Destination Guide 2020 for Wyre,Advertising - General
Wyre Council,http://opendatacommunities.org/doc/district-council/wyre,30/12/2019,Resources,Planning and Development Servs,132C,DAISY COMMUNICATIONS LTD,20/12/2019,RS125799,37.97,0.00,MONTHLY CHARGES,Advertising - General
Wyre Council,http://opendatacommunities.org/doc/district-council/wyre,30/12/2019,People and Places,Cultural and Related Services,132A,GARRY CARR BUILDING SERVICES LTD,20/12/2019,PE125868,154.00,0.00,"reinstate large ti,ber framed sign and banner",Advertising - General
Wyre Council,http://opendatacommunities.org/doc/district-council/wyre,30/12/2019,People and Places,Cultural and Related Services,132A,PRESTON CITY COUNCIL,10/12/2019,PE125598,50.00,0.00,300x Evelyn Glennie programmes,Advertising - General
Wyre Council,http://opendatacommunities.org/doc/district-council/wyre,30/12/2019,People and Places,Planning and Development Servs,132C,JPI MEDIA PUBLISHING LTD,20/12/2019,PE125906,288.00,0.00,Press notice for the Blackpool Gazette and Garstang Courier Wednesday 18th December 2019,Advertising - Statutory Notices
Wyre Council,http://opendatacommunities.org/doc/district-council/wyre,30/12/2019,People and Places,Planning and Development Servs,132C,JPI MEDIA PUBLISHING LTD,03/12/2019,PE125420,112.00,0.00,Press notice for the Blackpool Gazette and Garstang Courier Wednesday 20th November 2019,Advertising - Statutory Notices
Wyre Council,http://opendatacommunities.org/doc/district-council/wyre,30/12/2019,People and Places,Planning and Development Servs,132C,JPI MEDIA PUBLISHING LTD,03/12/2019,PE125409,291.20,0.00,Press notice for the Blackpool Gazette and Garstang Courier Wednesday 20th November 2019,Advertising - Statutory Notices
Wyre Council,http://opendatacommunities.org/doc/district-council/wyre,30/12/2019,Resources,Housing General Fund,134A,RHEA PROJECTS LTD,05/12/2019,RS125512,1113.00,0.00,Boiler replacement ,Affordable Warmth 2017/18
Wyre Council,http://opendatacommunities.org/doc/district-council/wyre,30/12/2019,People and Places,Planning and Development Servs,132C,EVOLUTION SECURITY SERVICES NW LTD,12/12/2019,PE125709,350.00,0.00,invoice no 31security supply03/12/2019security supply05/12/2019security supply06/12/2019security supply07/12/2019security supply 350   security supply,Agency Staff
Wyre Council,http://opendatacommunities.org/doc/district-council/wyre,30/12/2019,People and Places,Cultural and Related Services,132A,EVOLUTION SECURITY SERVICES NW LTD,05/12/2019,PE125529,94.50,0.00,Christmas fair and concert security,Agency Staff
Wyre Council,http://opendatacommunities.org/doc/district-council/wyre,30/12/2019,People and Places,Cultural and Related Services,132A,EVOLUTION SECURITY SERVICES NW LTD,05/12/2019,PE125485,121.50,0.00,Security at wedding event - Marine Hall 26/11/19,Agency Staff
Wyre Council,http://opendatacommunities.org/doc/district-council/wyre,30/12/2019,People and Places,Cultural and Related Services,132A,EVOLUTION SECURITY SERVICES NW LTD,19/12/2019,PE125882,108.00,0.00,Security - Marine Hall 13/14 - 12 - 19,Agency Staff
Wyre Council,http://opendatacommunities.org/doc/district-council/wyre,30/12/2019,People and Places,Support Services,135B,M J WILKINSON,12/12/2019,PE125719,406.80,0.00,Miscellaneous labour GENERIC EMT,Agency Staff
Wyre Council,http://opendatacommunities.org/doc/district-council/wyre,30/12/2019,People and Places,Support Services,135B,M J WILKINSON,12/12/2019,PE125720,203.04,0.00,Miscellaneous labour GENERIC EMT,Agency Staff
Wyre Council,http://opendatacommunities.org/doc/district-council/wyre,30/12/2019,People and Places,Support Services,135B,M J WILKINSON,12/12/2019,PE125721,266.49,0.00,Miscellaneous labour GENERIC EMT,Agency Staff
Wyre Council,http://opendatacommunities.org/doc/district-council/wyre,30/12/2019,People and Places,Support Services,135B,M J WILKINSON,12/12/2019,PE125724,507.60,0.00,Miscellaneous labour GENERIC EMT,Agency Staff
Wyre Council,http://opendatacommunities.org/doc/district-council/wyre,30/12/2019,People and Places,Support Services,135B,VIVID RESOURCING LTD,18/12/2019,PE125761,438.24,0.00,Additional cost for the affordable housing officer (until mid December),Agency Staff
Wyre Council,http://opendatacommunities.org/doc/district-council/wyre,30/12/2019,People and Places,Support Services,135B,VIVID RESOURCING LTD,16/12/2019,PE125535,146.25,0.00,Enforcement officer fees provided by Vivid Resourcing for a period of 6 months,Agency Staff
Wyre Council,http://opendatacommunities.org/doc/district-council/wyre,30/12/2019,People and Places,Support Services,135B,VIVID RESOURCING LTD,16/12/2019,PE125535,1473.75,0.00,Extra cost for Enforcement officer,Agency Staff
Wyre Council,http://opendatacommunities.org/doc/district-council/wyre,30/12/2019,People and Places,Support Services,135B,VIVID RESOURCING LTD,20/12/2019,PE125889,1620.00,0.00,Extra cost for Enforcement officer,Agency Staff
Wyre Council,http://opendatacommunities.org/doc/district-council/wyre,30/12/2019,People and Places,Support Services,135B,VIVID RESOURCING LTD,20/12/2019,PE125888,306.72,0.00,Additional cost for the affordable housing officer (until mid December),Agency Staff
Wyre Council,http://opendatacommunities.org/doc/district-council/wyre,30/12/2019,People and Places,Support Services,135B,VIVID RESOURCING LTD,20/12/2019,PE125760,1575.00,0.00,Extra cost for Enforcement officer,Agency Staff
Wyre Council,http://opendatacommunities.org/doc/district-council/wyre,30/12/2019,People and Places,Support Services,135B,VIVID RESOURCING LTD,11/12/2019,PE125536,255.84,0.00,Additional cost for the affordable housing officer (until mid December),Agency Staff
Wyre Council,http://opendatacommunities.org/doc/district-council/wyre,30/12/2019,People and Places,Support Services,135B,VIVID RESOURCING LTD,05/12/2019,PE125388,1507.50,0.00,Enforcement officer fees provided by Vivid Resourcing for a period of 6 months,Agency Staff
Wyre Council,http://opendatacommunities.org/doc/district-council/wyre,30/12/2019,People and Places,Cultural and Related Services,132A,WEST COAST RECRUITMENT PRESTON LTD T/A TOWER EMPLO,12/12/2019,PE125733,701.10,0.00,Agency staff 4 - 10/11/19,Agency Staff
Wyre Council,http://opendatacommunities.org/doc/district-council/wyre,30/12/2019,People and Places,Cultural and Related Services,132A,WEST COAST RECRUITMENT PRESTON LTD T/A TOWER EMPLO,12/12/2019,PE125732,759.53,0.00,Agency staff 18-22/11/19,Agency Staff
Wyre Council,http://opendatacommunities.org/doc/district-council/wyre,30/12/2019,People and Places,Cultural and Related Services,132A,WEST COAST RECRUITMENT PRESTON LTD T/A TOWER EMPLO,12/12/2019,PE125734,1309.95,0.00,Agency Staff 11-17/11/19,Agency Staff
Wyre Council,http://opendatacommunities.org/doc/district-council/wyre,30/12/2019,Resources,Support Services,135B,DAISY COMMUNICATIONS LTD,20/12/2019,RS125799,9.48,0.00,MONTHLY CHARGES,Alarm Systems and Security - Annual
Wyre Council,http://opendatacommunities.org/doc/district-council/wyre,30/12/2019,People and Places,Support Services,135B,EAS ELECTRICAL MECHANICAL,13/12/2019,PE125054,2200.00,0.00,WORKS AT MCKEE CENTRE,Annual Building Maintenance
Wyre Council,http://opendatacommunities.org/doc/district-council/wyre,30/12/2019,People and Places,Planning and Development Servs,132C,EAS ELECTRICAL MECHANICAL,20/12/2019,PE120175,338.05,0.00,CARRY OUT ELECTRICAL TEST AND REPLACED FAULTY SMOKE ALARM,Annual Building Maintenance
Wyre Council,http://opendatacommunities.org/doc/district-council/wyre,30/12/2019,People and Places,Cultural and Related Services,132A,GARRY CARR BUILDING SERVICES LTD,12/12/2019,PE125147,410.00,0.00,ANNUAL SERVICE MARSH MILL,Annual Building Maintenance
Wyre Council,http://opendatacommunities.org/doc/district-council/wyre,30/12/2019,People and Places,Planning and Development Servs,132C,OPAL DESIGN LTD,13/12/2019,PE125509,2735.00,0.00,ANNUAL SERVICE,Annual Building Maintenance
Wyre Council,http://opendatacommunities.org/doc/district-council/wyre,30/12/2019,People and Places,Support Services,135B,OPAL DESIGN LTD,13/12/2019,PE125214,250.00,0.00,ANNUAL GAS SERVICING,Annual Building Maintenance
Wyre Council,http://opendatacommunities.org/doc/district-council/wyre,30/12/2019,People and Places,Cultural and Related Services,132A,PHS GROUP LTD,12/12/2019,PE124791,318.69,0.00,MARINE HALL - 03/12/2019-03/03/2020,Annual Building Maintenance
Wyre Council,http://opendatacommunities.org/doc/district-council/wyre,30/12/2019,People and Places,Planning and Development Servs,132C,PHS GROUP LTD,17/12/2019,PE124784,1169.96,0.00,fleetwood market,Annual Building Maintenance
Wyre Council,http://opendatacommunities.org/doc/district-council/wyre,30/12/2019,Finance,Support Services,135B,,23/12/2019,R40/002622,2143.00,0.00,Apprenticeship Levy,Apprenticeship Levy
Wyre Council,http://opendatacommunities.org/doc/district-council/wyre,30/12/2019,Resources,Corporate and Democratic Core,131A,PR CHAUFFEURING SERVICES,03/12/2019,RS125439,1945.00,0.00,For supply of Mayor`s Attendant/Chauffeur service from 1 April 2019 to 31 March 2020.,Attendant Chauffeur Service
Wyre Council,http://opendatacommunities.org/doc/district-council/wyre,30/12/2019,Finance,Corporate and Democratic Core,131A,NATWEST BANK,03/12/2019,R21/002198,857.58,0.00,Nat west,Bank Charges
Wyre Council,http://opendatacommunities.org/doc/district-council/wyre,30/12/2019,Finance,Corporate and Democratic Core,131A,NATWEST BANK,23/12/2019,R40/002475,616.05,0.00,Worldpay 90315680,Bank Charges
Wyre Council,http://opendatacommunities.org/doc/district-council/wyre,30/12/2019,Finance,Corporate and Democratic Core,131A,NATWEST BANK,23/12/2019,R40/002476,886.14,0.00,Wrldpay 90302010,Bank Charges
Wyre Council,http://opendatacommunities.org/doc/district-council/wyre,30/12/2019,People and Places,Environmental Services,132B,LANCASHIRE COUNTY COUNCIL,12/12/2019,PE125729,20.00,0.00,Sample test for asbestos,Boarding Up Premises/House Clearance
Wyre Council,http://opendatacommunities.org/doc/district-council/wyre,30/12/2019,People and Places,Environmental Services,132B,LANCASTER CITY COUNCIL,03/12/2019,RS125267,2200.00,0.00,Pest Control Service,Boarding Up Premises/House Clearance
Wyre Council,http://opendatacommunities.org/doc/district-council/wyre,30/12/2019,People and Places,Environmental Services,132B,NICHOLAUS CARDWELL BUILDING & MAINTENANCE,03/12/2019,PE125438,2957.00,0.00,To remove and dispose of all waste in accordance with the requirements specified with the PHA Act Notice.,Boarding Up Premises/House Clearance
Wyre Council,http://opendatacommunities.org/doc/district-council/wyre,30/12/2019,Resources,Cultural and Related Services,132A,NSL SERVICES GROUP,05/12/2019,RS125487,33.05,0.00,fees,Cash Collection Security Service
Wyre Council,http://opendatacommunities.org/doc/district-council/wyre,30/12/2019,Resources,Planning and Development Servs,132C,NSL SERVICES GROUP,05/12/2019,RS125487,66.10,0.00,fees,Cash Collection Security Service
Wyre Council,http://opendatacommunities.org/doc/district-council/wyre,30/12/2019,Resources,Support Services,135B,NSL SERVICES GROUP,05/12/2019,RS125487,118.98,0.00,fees,Cash Collection Security Service
Wyre Council,http://opendatacommunities.org/doc/district-council/wyre,30/12/2019,Resources,Parking Services,133F,NSL SERVICES GROUP,05/12/2019,RS125487,720.49,0.00,fees,Cash Collection Security Service
Wyre Council,http://opendatacommunities.org/doc/district-council/wyre,30/12/2019,People and Places,Housing General Fund,134A,KONICA MINOLTA BUSINESS SOLUTIONS UK LTD,05/12/2019,PE125436,3.43,0.00,estimated usage for the hub printer and copier in fleetwood market,Central Printer/Copier Expenses
Wyre Council,http://opendatacommunities.org/doc/district-council/wyre,30/12/2019,Resources,Support Services,135B,KONICA MINOLTA BUSINESS SOLUTIONS UK LTD,19/12/2019,RS125842,64.20,0.00,printer usage,Central Printer/Copier Expenses
Wyre Council,http://opendatacommunities.org/doc/district-council/wyre,30/12/2019,Resources,Housing General Fund,134A,KONICA MINOLTA BUSINESS SOLUTIONS UK LTD,20/12/2019,RS125809,17.36,0.00,DECOMMISSIONED PRINTER,Central Printer/Copier Expenses
Wyre Council,http://opendatacommunities.org/doc/district-council/wyre,30/12/2019,People and Places,Planning and Development Servs,132C,KEY ENGINEERING & HYGIENE SUPPLIES LTD,06/12/2019,PE125453,39.70,0.00,2PLY WHITE TOILET ROLLS 320SHEETS 36PER CASE,Cleaning Materials
Wyre Council,http://opendatacommunities.org/doc/district-council/wyre,30/12/2019,People and Places,Environmental Services,132B,KEY ENGINEERING & HYGIENE SUPPLIES LTD,06/12/2019,PE125453,49.04,0.00,BLUE 2 ply centrefeed roll 144M x 195mm 400 sheets,Cleaning Materials
Wyre Council,http://opendatacommunities.org/doc/district-council/wyre,30/12/2019,Resources,Support Services,135B,KEY ENGINEERING & HYGIENE SUPPLIES LTD,04/12/2019,RS125450,26.40,0.00,THICKENED BLEACH 750ML,Cleaning Materials
Wyre Council,http://opendatacommunities.org/doc/district-council/wyre,30/12/2019,Resources,Support Services,135B,KEY ENGINEERING & HYGIENE SUPPLIES LTD,04/12/2019,RS125450,39.84,0.00,EAUFRESH NON ACIDIC POT POURRI TOILET CLEANER 1 LTR,Cleaning Materials
Wyre Council,http://opendatacommunities.org/doc/district-council/wyre,30/12/2019,Resources,Support Services,135B,KEY ENGINEERING & HYGIENE SUPPLIES LTD,04/12/2019,RS125450,21.84,0.00,PROTECTOR DISINFECTANT 750ML,Cleaning Materials
Wyre Council,http://opendatacommunities.org/doc/district-council/wyre,30/12/2019,Resources,Support Services,135B,KEY ENGINEERING & HYGIENE SUPPLIES LTD,04/12/2019,RS125450,14.63,0.00,11 X 18 X 18 WHITE PEDAL H/DUTY BIN LINER (500),Cleaning Materials
Wyre Council,http://opendatacommunities.org/doc/district-council/wyre,30/12/2019,Resources,Support Services,135B,KEY ENGINEERING & HYGIENE SUPPLIES LTD,04/12/2019,RS125450,8.70,0.00,WASHING UP LIQUID 5 LTR,Cleaning Materials
Wyre Council,http://opendatacommunities.org/doc/district-council/wyre,30/12/2019,Resources,Support Services,135B,KEY ENGINEERING & HYGIENE SUPPLIES LTD,04/12/2019,RS125450,22.80,0.00,FRESH AIR + FABRIC AEROSOL 400ML,Cleaning Materials
Wyre Council,http://opendatacommunities.org/doc/district-council/wyre,30/12/2019,Resources,Support Services,135B,KEY ENGINEERING & HYGIENE SUPPLIES LTD,04/12/2019,RS125450,47.16,0.00,AZURE FOAM WASH SOAP 1 LITRE CARTRIDGE,Cleaning Materials
Wyre Council,http://opendatacommunities.org/doc/district-council/wyre,30/12/2019,Resources,Support Services,135B,KEY ENGINEERING & HYGIENE SUPPLIES LTD,04/12/2019,RS125450,29.61,0.00,MEDIUM BLACK REFUSE SACK 18X29X34 100G,Cleaning Materials
Wyre Council,http://opendatacommunities.org/doc/district-council/wyre,30/12/2019,Resources,Support Services,135B,KEY ENGINEERING & HYGIENE SUPPLIES LTD,04/12/2019,RS125450,129.61,0.00,WHITE 2PLY LUXURY TOILET ROLL 320 40 PER PACK,Cleaning Materials
Wyre Council,http://opendatacommunities.org/doc/district-council/wyre,30/12/2019,Resources,Support Services,135B,KEY ENGINEERING & HYGIENE SUPPLIES LTD,04/12/2019,RS125450,152.00,0.00,1 PLY BLUE INTERFOLD 3600 SHEETS,Cleaning Materials
Wyre Council,http://opendatacommunities.org/doc/district-council/wyre,30/12/2019,Resources,Support Services,135B,KEY ENGINEERING & HYGIENE SUPPLIES LTD,04/12/2019,RS125450,3.15,0.00,KEYPINE GENERAL DISINFECTANT 5LTR,Cleaning Materials
Wyre Council,http://opendatacommunities.org/doc/district-council/wyre,30/12/2019,Resources,Support Services,135B,KEY ENGINEERING & HYGIENE SUPPLIES LTD,04/12/2019,RS125450,4.20,0.00,20 X 15 BLEACHED DISH CLOTHS EA,Cleaning Materials
Wyre Council,http://opendatacommunities.org/doc/district-council/wyre,30/12/2019,Resources,Support Services,135B,KEY ENGINEERING & HYGIENE SUPPLIES LTD,04/12/2019,RS125450,10.08,0.00,FLORATILE GENERAL PURPOSE  CLEANER 5 LTR,Cleaning Materials
Wyre Council,http://opendatacommunities.org/doc/district-council/wyre,30/12/2019,Resources,Support Services,135B,KEY ENGINEERING & HYGIENE SUPPLIES LTD,04/12/2019,RS125450,15.72,0.00,LAVATORY BRUSH WITH HOLDER,Cleaning Materials
Wyre Council,http://opendatacommunities.org/doc/district-council/wyre,30/12/2019,Resources,Support Services,135B,KEY ENGINEERING & HYGIENE SUPPLIES LTD,04/12/2019,RS125450,3.00,0.00,RED STRIPE DISH CLOTH EA,Cleaning Materials
Wyre Council,http://opendatacommunities.org/doc/district-council/wyre,30/12/2019,People and Places,Cultural and Related Services,132A,KEY ENGINEERING & HYGIENE SUPPLIES LTD,11/12/2019,PE125465,9.96,0.00,EAUFRESH NON ACIDIC POT POURRI TOILET CLEANER 1 LTR,Cleaning Materials
Wyre Council,http://opendatacommunities.org/doc/district-council/wyre,30/12/2019,People and Places,Cultural and Related Services,132A,KEY ENGINEERING & HYGIENE SUPPLIES LTD,11/12/2019,PE125465,32.96,0.00,EXTRA STRONG BLACK REFUSE SACK 18X29X39 180G 90LTR (PER 200),Cleaning Materials
Wyre Council,http://opendatacommunities.org/doc/district-council/wyre,30/12/2019,People and Places,Cultural and Related Services,132A,KEY ENGINEERING & HYGIENE SUPPLIES LTD,11/12/2019,PE125465,0.30,0.00,BLUE STRIP DISH CLOTH EA,Cleaning Materials
Wyre Council,http://opendatacommunities.org/doc/district-council/wyre,30/12/2019,People and Places,Cultural and Related Services,132A,KEY ENGINEERING & HYGIENE SUPPLIES LTD,11/12/2019,PE125465,0.30,0.00,GREEN STRIPE DISH CLOTH EA,Cleaning Materials
Wyre Council,http://opendatacommunities.org/doc/district-council/wyre,30/12/2019,People and Places,Cultural and Related Services,132A,KEY ENGINEERING & HYGIENE SUPPLIES LTD,11/12/2019,PE125465,0.30,0.00,RED STRIPE DISH CLOTH EA,Cleaning Materials
Wyre Council,http://opendatacommunities.org/doc/district-council/wyre,30/12/2019,Resources,Support Services,135B,KEY ENGINEERING & HYGIENE SUPPLIES LTD,20/12/2019,RS125928,26.40,0.00,THICKENED BLEACH 750ML,Cleaning Materials
Wyre Council,http://opendatacommunities.org/doc/district-council/wyre,30/12/2019,Resources,Support Services,135B,KEY ENGINEERING & HYGIENE SUPPLIES LTD,20/12/2019,RS125928,9.96,0.00,EAUFRESH NON ACIDIC POT POURRI TOILET CLEANER 1 LTR,Cleaning Materials
Wyre Council,http://opendatacommunities.org/doc/district-council/wyre,30/12/2019,Resources,Support Services,135B,KEY ENGINEERING & HYGIENE SUPPLIES LTD,20/12/2019,RS125928,4.35,0.00,WASHING UP LIQUID 5 LTR,Cleaning Materials
Wyre Council,http://opendatacommunities.org/doc/district-council/wyre,30/12/2019,Resources,Support Services,135B,KEY ENGINEERING & HYGIENE SUPPLIES LTD,20/12/2019,RS125928,5.49,0.00,LATEX POWDER FREE GLOVES MED,Cleaning Materials
Wyre Council,http://opendatacommunities.org/doc/district-council/wyre,30/12/2019,Resources,Support Services,135B,KEY ENGINEERING & HYGIENE SUPPLIES LTD,20/12/2019,RS125928,47.16,0.00,AZURE FOAM WASH SOAP 1 LITRE CARTRIDGE,Cleaning Materials
Wyre Council,http://opendatacommunities.org/doc/district-council/wyre,30/12/2019,Resources,Support Services,135B,KEY ENGINEERING & HYGIENE SUPPLIES LTD,20/12/2019,RS125928,182.40,0.00,1 PLY BLUE INTERFOLD 3600 SHEETS,Cleaning Materials
Wyre Council,http://opendatacommunities.org/doc/district-council/wyre,30/12/2019,Resources,Support Services,135B,KEY ENGINEERING & HYGIENE SUPPLIES LTD,20/12/2019,RS125928,159.52,0.00,WHITE 2PLY LUXURY TOILET ROLL 320 40 PER PACK,Cleaning Materials
Wyre Council,http://opendatacommunities.org/doc/district-council/wyre,30/12/2019,Resources,Support Services,135B,KEY ENGINEERING & HYGIENE SUPPLIES LTD,20/12/2019,RS125928,29.61,0.00,MEDIUM BLACK REFUSE SACK 18X29X34 100G,Cleaning Materials
Wyre Council,http://opendatacommunities.org/doc/district-council/wyre,30/12/2019,Resources,Support Services,135B,KEY ENGINEERING & HYGIENE SUPPLIES LTD,20/12/2019,RS125928,4.20,0.00,20 X 15 BLEACHED DISH CLOTHS EA,Cleaning Materials
Wyre Council,http://opendatacommunities.org/doc/district-council/wyre,30/12/2019,Resources,Support Services,135B,KEY ENGINEERING & HYGIENE SUPPLIES LTD,20/12/2019,RS125928,9.45,0.00,KEYPINE GENERAL DISINFECTANT 5LTR,Cleaning Materials
Wyre Council,http://opendatacommunities.org/doc/district-council/wyre,30/12/2019,Resources,Support Services,135B,KEY ENGINEERING & HYGIENE SUPPLIES LTD,20/12/2019,RS125928,5.04,0.00,FLORATILE GENERAL PURPOSE  CLEANER 5 LTR,Cleaning Materials
Wyre Council,http://opendatacommunities.org/doc/district-council/wyre,30/12/2019,People and Places,Cultural and Related Services,132A,LYRECO UK LTD,04/12/2019,PE125458,22.44,0.00,LYRECO GREEN 1 PLY C-FOLD HAND TOWELS - PACK OF 2880,Cleaning Materials
Wyre Council,http://opendatacommunities.org/doc/district-council/wyre,30/12/2019,People and Places,Cultural and Related Services,132A,LYRECO UK LTD,04/12/2019,PE125458,81.48,0.00,TORK SMARTONE T8 WHITE 2 PLY TOILET ROLL 207M - PACK OF 6,Cleaning Materials
Wyre Council,http://opendatacommunities.org/doc/district-council/wyre,30/12/2019,People and Places,Cultural and Related Services,132A,LYRECO UK LTD,10/12/2019,PE124866,6.38,0.00,PK12 LYRECO TOILETPAPER ROLL 2PLY 200SHT,Cleaning Materials
Wyre Council,http://opendatacommunities.org/doc/district-council/wyre,30/12/2019,People and Places,Cultural and Related Services,132A,LYRECO UK LTD,10/12/2019,PE124866,22.44,0.00,LYRECO GREEN 1 PLY C-FOLD HAND TOWELS - PACK OF 2880,Cleaning Materials
Wyre Council,http://opendatacommunities.org/doc/district-council/wyre,30/12/2019,People and Places,Cultural and Related Services,132A,LYRECO UK LTD,10/12/2019,PE124866,54.32,0.00,TORK SMARTONE T8 WHITE 2 PLY TOILET ROLL 207M - PACK OF 6,Cleaning Materials
Wyre Council,http://opendatacommunities.org/doc/district-council/wyre,30/12/2019,People and Places,Environmental Services,132B,KEY ENGINEERING & HYGIENE SUPPLIES LTD,20/12/2019,PE125930,109.33,0.00,Supply and deliver as per your quotation 3879ZZ00002263 2  x 1/4`` X 100` BAND 201 STAINLESS STEEL 22.75 EACHZZ00002264 2 x   BOX OF 100 1/4`` BAND-IT BUCKLES 201 STAINLESS STEEL 14.56 EACH STA089867 1 STANLEY FAT MAX COMB PLIER 185MM 0-89-867 12.89,Community Development Initiatives
Wyre Council,http://opendatacommunities.org/doc/district-council/wyre,30/12/2019,People and Places,Environmental Services,132B,KEY ENGINEERING & HYGIENE SUPPLIES LTD,06/12/2019,PE125449,69.30,0.00,"Supply and deliver the following please30 pairs of Thermo Star gloves, code BSHBLCSGOR/09, size 9 @ 2.31",Community Payback Scheme
Wyre Council,http://opendatacommunities.org/doc/district-council/wyre,30/12/2019,People and Places,Environmental Services,132B,KEY ENGINEERING & HYGIENE SUPPLIES LTD,06/12/2019,PE125449,92.40,0.00,"40 pairs of Thermo Star gloves, code BSHBLCSGOR/10, size 10 @ 2.31",Community Payback Scheme
Wyre Council,http://opendatacommunities.org/doc/district-council/wyre,30/12/2019,People and Places,Environmental Services,132B,KEY ENGINEERING & HYGIENE SUPPLIES LTD,06/12/2019,PE125449,42.50,0.00,50 pairs of Click 2000 MP1 Multi purpose gloves in large @ 0.85 each,Community Payback Scheme
Wyre Council,http://opendatacommunities.org/doc/district-council/wyre,30/12/2019,People and Places,Environmental Services,132B,KEY ENGINEERING & HYGIENE SUPPLIES LTD,06/12/2019,PE125449,38.00,0.00,"50 pairs of Puggies grey gloves, code PUGGIES size 9 in large @ 0.70 each",Community Payback Scheme
Wyre Council,http://opendatacommunities.org/doc/district-council/wyre,30/12/2019,People and Places,Environmental Services,132B,KEY ENGINEERING & HYGIENE SUPPLIES LTD,06/12/2019,PE125449,75.00,0.00,"50 x Thermal grip gloves in yellow, code PWA1409, size 9 @ 1.50 each",Community Payback Scheme
Wyre Council,http://opendatacommunities.org/doc/district-council/wyre,30/12/2019,People and Places,Environmental Services,132B,KEY ENGINEERING & HYGIENE SUPPLIES LTD,06/12/2019,PE125449,50.50,0.00,"50 x Nitrile Knitwrist in size 9, code PWA300/09 in blue @ 1.01 each",Community Payback Scheme
Wyre Council,http://opendatacommunities.org/doc/district-council/wyre,30/12/2019,People and Places,Environmental Services,132B,KEY ENGINEERING & HYGIENE SUPPLIES LTD,06/12/2019,PE125449,124.20,0.00,"30 x Predator Watersafe Pacific cut 5 protection in green, size 9, code J1WJ3/09 @ 4.14 each",Community Payback Scheme
Wyre Council,http://opendatacommunities.org/doc/district-council/wyre,30/12/2019,People and Places,Environmental Services,132B,KEY ENGINEERING & HYGIENE SUPPLIES LTD,06/12/2019,PE125449,42.50,0.00,"50 x Green Topaz latex/Poly gloves, size 9, code BSMP1G/Large @ 0.85 each",Community Payback Scheme
Wyre Council,http://opendatacommunities.org/doc/district-council/wyre,30/12/2019,People and Places,Environmental Services,132B,KEY ENGINEERING & HYGIENE SUPPLIES LTD,06/12/2019,PE125449,33.06,0.00,6 boxes of GN99 in large @ 5.05 each,Community Payback Scheme
Wyre Council,http://opendatacommunities.org/doc/district-council/wyre,30/12/2019,People and Places,Environmental Services,132B,KEY ENGINEERING & HYGIENE SUPPLIES LTD,06/12/2019,PE125449,33.06,0.00,6 boxes of GN99 in X large @ 5.05 each,Community Payback Scheme
Wyre Council,http://opendatacommunities.org/doc/district-council/wyre,30/12/2019,People and Places,Environmental Services,132B,KEY ENGINEERING & HYGIENE SUPPLIES LTD,06/12/2019,PE125449,25.78,0.00,2 x Blue Centre feed rolls 144m x 195mm 400 sheets @ 12.89 per pack,Community Payback Scheme
Wyre Council,http://opendatacommunities.org/doc/district-council/wyre,30/12/2019,People and Places,Environmental Services,132B,KEY ENGINEERING & HYGIENE SUPPLIES LTD,06/12/2019,PE125449,169.00,0.00,"20 x Tygris Engineers dual textured hand wipes, code TYHW111 @ 8.76 per tub To be delivered to Copse Road Depot, Copse Road, Fleetwood, Lancashire, FY7 6RP",Community Payback Scheme
Wyre Council,http://opendatacommunities.org/doc/district-council/wyre,30/12/2019,Resources,Support Services,135B,COOLSPIRIT LTD,04/12/2019,RS125408,5610.18,0.00,"COMCV-BR-FT Commvault Complete Backup & Recovery - Per Front-End TB, Perpetual",Comp Hardware Purchases
Wyre Council,http://opendatacommunities.org/doc/district-council/wyre,30/12/2019,Resources,Support Services,135B,COOLSPIRIT LTD,04/12/2019,RS125408,673.23,0.00,COMS-CASPE-WBC-L Commvault Support & Maintenance Subscription - CASP-E License Coverage - Wyre Borough Council.,Comp Hardware Purchases
Wyre Council,http://opendatacommunities.org/doc/district-council/wyre,30/12/2019,Resources,Support Services,135B,COOLSPIRIT LTD,04/12/2019,RS125408,504.93,0.00,COMS-CASPE-WBC-S Commvault Support & Maintenance Subscription - CASP-E Support Desk - Wyre Borough Council.,Comp Hardware Purchases
Wyre Council,http://opendatacommunities.org/doc/district-council/wyre,30/12/2019,Resources,Support Services,135B,PHOENIX SOFTWARE LTD,20/12/2019,RS125932,1391.00,0.00,4 x 10Zig Clients to replace faulty Dell Wyse clients that failed firmware updates.,Comp Hardware Purchases
Wyre Council,http://opendatacommunities.org/doc/district-council/wyre,30/12/2019,People and Places,Environmental Services,132B,BLACKBURN WITH DARWEN BOROUGH COUNCIL,20/12/2019,PE125933,1448.01,0.00,To Provide Contaminated land and Air Quality Consultancy 2019-2020,Consultants Fees
Wyre Council,http://opendatacommunities.org/doc/district-council/wyre,30/12/2019,Resources,Support Services,135B,CITADEL CHAMBERS,16/12/2019,RS125631,1000.00,0.00,Appeal RE: Paul Johnson-Kay (Red Star Pub Company - Wheatsheaf  Pub)29/06/2019 Conference Included in Brief fee.Licensing Appeal,Consultants Fees
Wyre Council,http://opendatacommunities.org/doc/district-council/wyre,30/12/2019,Resources,Planning and Development Servs,132C,KINGS CHAMBERS,04/12/2019,RS125472,2362.50,0.00,Additional legal cost for 2019/2020,Consultants Fees
Wyre Council,http://opendatacommunities.org/doc/district-council/wyre,30/12/2019,People and Places,Planning and Development Servs,132C,KINGS CHAMBERS,13/12/2019,PE125767,200.00,0.00,Additional legal advice for the Helmdeep Inquiry (enforcement),Consultants Fees
Wyre Council,http://opendatacommunities.org/doc/district-council/wyre,30/12/2019,People and Places,Planning and Development Servs,132C,KINGS CHAMBERS,20/12/2019,PE125926,675.00,0.00,Legal advice for the Lambs Road Inquiry 17/00951/OUTMAJ - Land On The East Side OfLambs Road Thornton Cleveleys Lancashire,Consultants Fees
Wyre Council,http://opendatacommunities.org/doc/district-council/wyre,30/12/2019,People and Places,Cultural and Related Services,132A,LANDSCAPE PROJECTS,20/12/2019,PE125922,8145.00,0.00,"Provision of a High Street Strategy and Action Plan,. Museum and Market area study provided by Landscape project Ltd",Consultants Fees
Wyre Council,http://opendatacommunities.org/doc/district-council/wyre,30/12/2019,Resources,Planning and Development Servs,132C,LOCAL PARTNERSHIPS,18/12/2019,RS125805,11500.00,0.00,PROJECT DELIVERY INCOME WYRE COUNCIL - DELIVERY OPTIONS STUDY BOURNE HILL - WHOLE PROJECT,Consultants Fees
Wyre Council,http://opendatacommunities.org/doc/district-council/wyre,30/12/2019,Resources,Planning and Development Servs,132C,LOCAL PARTNERSHIPS,18/12/2019,RS125805,72.45,0.00,RECHARGED EXPENSES,Consultants Fees
Wyre Council,http://opendatacommunities.org/doc/district-council/wyre,30/12/2019,Resources,Central Services to the Public,131C,NORTHGATE PUBLIC SERVICES UK LTD,03/12/2019,RS125426,2200.00,0.00,NPS Reference NQ/105952R & BProject description: 2 Days remote consultancy to amend 2019 CTR schemeTo be delivered Remotely.2 Days 2 x 1100,Consultants Fees
Wyre Council,http://opendatacommunities.org/doc/district-council/wyre,30/12/2019,People and Places,Planning and Development Servs,132C,STANTEC UK LTD,16/12/2019,PE125792,5000.00,0.00,To complete a Business Case for the Future High Street Fund bid,Consultants Fees
Wyre Council,http://opendatacommunities.org/doc/district-council/wyre,30/12/2019,People and Places,Planning and Development Servs,132C,URBAN VISION PARTNERSHIP LTD,11/12/2019,PE125670,2431.25,0.00,Landscape visual statement provided by Urban Vision relating to app: 19/00568/LMAJ,Consultants Fees
Wyre Council,http://opendatacommunities.org/doc/district-council/wyre,30/12/2019,People and Places,"Cultural, Environ and Planning",137B,HALCROW GROUP LIMITED,05/12/2019,PE125490,9821.43,0.00,Wyre Beach Management and Rossall SouthAssistance with appraisal of options and initial development of 5-case business modelProject code 694603,Consultants Fees (New CCR)
Wyre Council,http://opendatacommunities.org/doc/district-council/wyre,30/12/2019,People and Places,"Cultural, Environ and Planning",137B,MARINE MANAGEMENT ORGANISATION,13/12/2019,PE125657,1403.00,0.00,"Works to provide licensing advise for the Wyre Beach Management Scheme.  Marine Management Organisation 20 hours at 146.50/hour = 2928.00  Cefas (Centre for Environment, Fisheries and Aquaculture Science)  20 hours at 86.00/hour = 1720.00 Total cost =",Consultants Fees (New CCR)
Wyre Council,http://opendatacommunities.org/doc/district-council/wyre,30/12/2019,People and Places,"Cultural, Environ and Planning",137B,RYDER LANDSCAPE CONSULTANTS LTD,20/12/2019,PE125646,8288.12,0.00,"Consultancy services for the restoration of the Mount Garden, Fleetwood",Consultants Fees (New CCR)
Wyre Council,http://opendatacommunities.org/doc/district-council/wyre,30/12/2019,People and Places,Support Services,135B,F M WASTE LTD,11/12/2019,PE125651,180.00,0.00,Skips to be emptied at Wyre Cemeteries prt2,Containers Skips and Hire
Wyre Council,http://opendatacommunities.org/doc/district-council/wyre,30/12/2019,People and Places,Support Services,135B,F M WASTE LTD,11/12/2019,PE125650,100.00,0.00,Skips to be emptied at Wyre Cemeteries prt2,Containers Skips and Hire
Wyre Council,http://opendatacommunities.org/doc/district-council/wyre,30/12/2019,People and Places,"Cultural, Environ and Planning",137B,BAY BUILDING SERVICES,13/12/2019,PE125779,83086.43,0.00,Carry out complete Boiler Replacement and associated works  at Fleetwood YMCA as per Tender 17 Oct 19,Contract (New CCR)
Wyre Council,http://opendatacommunities.org/doc/district-council/wyre,30/12/2019,Resources,Non Service Related Exp,137F,INSIGHT DIRECT (UK) LIMITED,03/12/2019,RS125423,562.24,0.00,Dell Latitude 3500 15.6`` - Core I5 8265U - 8 GB RAM - 256 GB SSD,Contract (New CCR)
Wyre Council,http://opendatacommunities.org/doc/district-council/wyre,30/12/2019,People and Places,"Cultural, Environ and Planning",137B,R DEVELOPMENTS LTD T/A ROSSLEE CONSTRUCTION,12/12/2019,PE125497,49464.00,0.00,"Work to restore the Mount grounds, pavilion and lodge in Fleetwood",Contract (New CCR)
Wyre Council,http://opendatacommunities.org/doc/district-council/wyre,30/12/2019,People and Places,"Cultural, Environ and Planning",137B,TIMOTAY LANDSCAPES LTD,20/12/2019,PE125600,13997.52,0.00,"Interim 1 landscaping works being carried out, job number 2019/000174",Contract (New CCR)
Wyre Council,http://opendatacommunities.org/doc/district-council/wyre,30/12/2019,People and Places,"Cultural, Environ and Planning",137B,TIMOTAY LANDSCAPES LTD,20/12/2019,PE125862,2799.51,0.00,"Completion fee for landscaping works being carried out, job number 2019/000174",Contract (New CCR)
Wyre Council,http://opendatacommunities.org/doc/district-council/wyre,30/12/2019,Resources,Housing General Fund,134A,IRRV SERVICES LTD,12/12/2019,RS125708,1200.00,0.00,IRRV Forum Membership 2020,Corporate and Professional Subscriptions
Wyre Council,http://opendatacommunities.org/doc/district-council/wyre,30/12/2019,Finance,Current Assets,130B,,03/12/2019,R21/002194,19450.50,0.00,Council Tax Refunds,Council Tax Refunds
Wyre Council,http://opendatacommunities.org/doc/district-council/wyre,30/12/2019,Finance,Current Assets,130B,,18/12/2019,R51/002291,10809.36,0.00,Council Tax Refunds,Council Tax Refunds
Wyre Council,http://opendatacommunities.org/doc/district-council/wyre,30/12/2019,Finance,Current Assets,130B,,18/12/2019,R51/002704,16289.24,0.00,Council Tax Refunds,Council Tax Refunds
Wyre Council,http://opendatacommunities.org/doc/district-council/wyre,30/12/2019,People and Places,Environmental Services,132B,JOHNSTON SWEEPERS LTD,20/12/2019,PE125648,143.18,0.00,Air Filter Element,Daywork Materials (Excl.Tyres)
Wyre Council,http://opendatacommunities.org/doc/district-council/wyre,30/12/2019,People and Places,Environmental Services,132B,JOHNSTON SWEEPERS LTD,20/12/2019,PE125648,143.17,0.00,Air Filter Element,Daywork Materials (Excl.Tyres)
Wyre Council,http://opendatacommunities.org/doc/district-council/wyre,30/12/2019,People and Places,Environmental Services,132B,JOHNSTON SWEEPERS LTD,20/12/2019,PE125648,143.17,0.00,Air Filter Element,Daywork Materials (Excl.Tyres)
Wyre Council,http://opendatacommunities.org/doc/district-council/wyre,30/12/2019,People and Places,Environmental Services,132B,JOHNSTON SWEEPERS LTD,20/12/2019,PE125648,143.18,0.00,Air Filter Element,Daywork Materials (Excl.Tyres)
Wyre Council,http://opendatacommunities.org/doc/district-council/wyre,30/12/2019,People and Places,Environmental Services,132B,RENTOKIL INITIAL UK LTD,13/12/2019,PE125759,513.53,0.00,Clinical waste collection & disposal service to Wyre domestic customers To include the provision of containers for financial year 2019/20  Order to be left open and invoices will be received each month against it,Disposal Costs Hazardous Waste
Wyre Council,http://opendatacommunities.org/doc/district-council/wyre,30/12/2019,People and Places,Environmental Services,132B,RENTOKIL INITIAL UK LTD,13/12/2019,PE125758,518.95,0.00,Clinical waste collection & disposal service to Wyre domestic customers To include the provision of containers for financial year 2019/20  Order to be left open and invoices will be received each month against it,Disposal Costs Hazardous Waste
Wyre Council,http://opendatacommunities.org/doc/district-council/wyre,30/12/2019,People and Places,Environmental Services,132B,RENTOKIL INITIAL UK LTD,13/12/2019,PE125756,518.95,0.00,Clinical waste collection & disposal service to Wyre domestic customers To include the provision of containers for financial year 2019/20  Order to be left open and invoices will be received each month against it,Disposal Costs Hazardous Waste
Wyre Council,http://opendatacommunities.org/doc/district-council/wyre,30/12/2019,People and Places,Environmental Services,132B,RENTOKIL INITIAL UK LTD,19/12/2019,PE125757,518.95,0.00,Clinical waste collection & disposal service to Wyre domestic customers To include the provision of containers for financial year 2019/20  Order to be left open and invoices will be received each month against it,Disposal Costs Hazardous Waste
Wyre Council,http://opendatacommunities.org/doc/district-council/wyre,30/12/2019,People and Places,Cultural and Related Services,132A,Primo Drinks Blackpool,11/12/2019,PE125659,1295.28,0.00,Champagne & Prosecco,Drinks
Wyre Council,http://opendatacommunities.org/doc/district-council/wyre,30/12/2019,People and Places,Cultural and Related Services,132A,LYRECO UK LTD,12/12/2019,PE125725,64.90,0.00,1.437.654  EA COLLINS LANDSCAPE DESK CALENDAR  -  7.13 5.871.057  EA SIMPLY DTO DAILY TEAR OFF CALENDAR -  2.49 712.066     EA PK500 BONG ENV C5 90G S/S WH  - 3.47 8.031.432  EA PK5X100 PED LINER 11X17X17` WH CHSA - 9.89 10.081.347 EA PK18 LYR,Equipment for Resale
Wyre Council,http://opendatacommunities.org/doc/district-council/wyre,30/12/2019,Resources,Corporate and Democratic Core,131A,DELOITTE LLP LTD,16/12/2019,RS125790,10000.00,0.00,2019/20 External Audit Fees,External Audit Fees
Wyre Council,http://opendatacommunities.org/doc/district-council/wyre,30/12/2019,Resources,Housing General Fund,134A,DELOITTE LLP LTD,17/12/2019,RS125737,8000.00,0.00,HOUSING BENEFIT SUBSIDY ASSURANCE PROCESS 2018/19,External Audit Fees
Wyre Council,http://opendatacommunities.org/doc/district-council/wyre,30/12/2019,Resources,Housing General Fund,134A,DELOITTE LLP LTD,17/12/2019,RS125737,750.00,0.00,ADDITIONAL 40+ CASES TESTED,External Audit Fees
Wyre Council,http://opendatacommunities.org/doc/district-council/wyre,30/12/2019,Resources,Housing General Fund,134A,DELOITTE LLP LTD,17/12/2019,RS125737,2500.00,0.00,2016/17 HB Subsidy additional work,External Audit Fees
Wyre Council,http://opendatacommunities.org/doc/district-council/wyre,30/12/2019,People and Places,Cultural and Related Services,132A,FYLDE COAST YMCA,17/12/2019,PE125830,5790.00,0.00,Wyre Wheels Delivery,External Coaching
Wyre Council,http://opendatacommunities.org/doc/district-council/wyre,30/12/2019,People and Places,Environmental Services,132B,BLACKPOOL SKIP HIRE LTD,18/12/2019,PE125832,500.00,0.00,"Removal of asbestos from Anchorsholme Lane, Thornton Cleveleys",Hazardous Waste Disposal
Wyre Council,http://opendatacommunities.org/doc/district-council/wyre,30/12/2019,People and Places,Central Services to the Public,131C,BISPHAM VAN HIRE LTD,19/12/2019,PE125774,395.83,0.00,"Official purchase order to Dave Lindsay at Bispham Van Hire  To Supply 4 X 3.5 tonne Luton Vans complete with Tail Lifts Monday 9th December return Friday 13th, Monday 16th December return by midnight on Wednesday 18th  @ 633.34 per van + vat Total Cost",Hire of Tools or Equipment
Wyre Council,http://opendatacommunities.org/doc/district-council/wyre,30/12/2019,People and Places,Central Services to the Public,131C,BISPHAM VAN HIRE LTD,19/12/2019,PE125903,237.50,0.00,"Official purchase order to Dave Lindsay at Bispham Van Hire  To Supply 4 X 3.5 tonne Luton Vans complete with Tail Lifts Monday 9th December return Friday 13th, Monday 16th December return by midnight on Wednesday 18th  @ 633.34 per van + vat Total Cost",Hire of Tools or Equipment
Wyre Council,http://opendatacommunities.org/doc/district-council/wyre,30/12/2019,People and Places,Central Services to the Public,131C,BISPHAM VAN HIRE LTD,19/12/2019,PE125902,237.50,0.00,"Official purchase order to Dave Lindsay at Bispham Van Hire  To Supply 4 X 3.5 tonne Luton Vans complete with Tail Lifts Monday 9th December return Friday 13th, Monday 16th December return by midnight on Wednesday 18th  @ 633.34 per van + vat Total Cost",Hire of Tools or Equipment
Wyre Council,http://opendatacommunities.org/doc/district-council/wyre,30/12/2019,People and Places,Central Services to the Public,131C,BISPHAM VAN HIRE LTD,19/12/2019,PE125899,237.50,0.00,"Official purchase order to Dave Lindsay at Bispham Van HireTo Supply4 X 3.5 tonne Luton Vans complete with Tail Lifts Monday 9th December return Friday 13th, Monday 16th December return by midnight on Wednesday 18th  @ 633.34 per van + vat Total Co",Hire of Tools or Equipment
Wyre Council,http://opendatacommunities.org/doc/district-council/wyre,30/12/2019,People and Places,Central Services to the Public,131C,BISPHAM VAN HIRE LTD,13/12/2019,PE125770,395.83,0.00,"Official purchase order to Dave Lindsay at Bispham Van Hire  To Supply 4 X 3.5 tonne Luton Vans complete with Tail Lifts Monday 9th December return Friday 13th, Monday 16th December return by midnight on Wednesday 18th  @ 633.34 per van + vat Total Cost",Hire of Tools or Equipment
Wyre Council,http://opendatacommunities.org/doc/district-council/wyre,30/12/2019,People and Places,Central Services to the Public,131C,BISPHAM VAN HIRE LTD,13/12/2019,PE125769,395.83,0.00,"Official purchase order to Dave Lindsay at Bispham Van Hire  To Supply 4 X 3.5 tonne Luton Vans complete with Tail Lifts Monday 9th December return Friday 13th, Monday 16th December return by midnight on Wednesday 18th  @ 633.34 per van + vat Total Cost",Hire of Tools or Equipment
Wyre Council,http://opendatacommunities.org/doc/district-council/wyre,30/12/2019,People and Places,Central Services to the Public,131C,BISPHAM VAN HIRE LTD,13/12/2019,PE125768,395.83,0.00,"Official purchase order to Dave Lindsay at Bispham Van Hire  To Supply 4 X 3.5 tonne Luton Vans complete with Tail Lifts Monday 9th December return Friday 13th, Monday 16th December return by midnight on Wednesday 18th  @ 633.34 per van + vat Total Cost",Hire of Tools or Equipment
Wyre Council,http://opendatacommunities.org/doc/district-council/wyre,30/12/2019,People and Places,Central Services to the Public,131C,KEY ENGINEERING & HYGIENE SUPPLIES LTD,06/12/2019,PE125453,40.00,0.00,20 Standard coal shovel @ 2.00 each,Hire of Tools or Equipment
Wyre Council,http://opendatacommunities.org/doc/district-council/wyre,30/12/2019,People and Places,Central Services to the Public,131C,KEY ENGINEERING & HYGIENE SUPPLIES LTD,06/12/2019,PE125453,155.28,0.00,"URGENT REQUEST FOR ELECTIONS AS QUOTATION 414612 X TRAFFIC CONE LIGHTS, CODE ZZ00002271 @ 12.94 EACH",Hire of Tools or Equipment
Wyre Council,http://opendatacommunities.org/doc/district-council/wyre,30/12/2019,People and Places,Central Services to the Public,131C,KEY ENGINEERING & HYGIENE SUPPLIES LTD,06/12/2019,PE125453,13.68,0.00,"12 X PJ996 6V BATTERY, CODE ZZ00002272 @ 1.14 EACH TO BE DELIVERED TO COPSE ROAD DEPOT, COPSE ROAD, FLEETWOOD, LANCASHIRE, FY7 6RP",Hire of Tools or Equipment
Wyre Council,http://opendatacommunities.org/doc/district-council/wyre,30/12/2019,Resources,Support Services,135B,KONICA MINOLTA BUSINESS SOLUTIONS UK LTD,16/12/2019,RS125605,723.45,0.00,SERVICE CHARGES 2019/20,Hire of Tools or Equipment
Wyre Council,http://opendatacommunities.org/doc/district-council/wyre,30/12/2019,Resources,Support Services,135B,KONICA MINOLTA BUSINESS SOLUTIONS UK LTD,19/12/2019,RS125834,1057.32,0.00,MFD Copiers Usage 2019/20,Hire of Tools or Equipment
Wyre Council,http://opendatacommunities.org/doc/district-council/wyre,30/12/2019,People and Places,Support Services,135B,M J WILKINSON,12/12/2019,PE125744,80.00,0.00,supply as invoice 31424 (hire of hitachi for 1 day ),Hire of Tools or Equipment
Wyre Council,http://opendatacommunities.org/doc/district-council/wyre,30/12/2019,People and Places,Central Services to the Public,131C,MOBILE MINI UK LTD,17/12/2019,PE125688,1337.80,0.00,"2 no 32ft mobile units delivered on Tuesday 3rd December and collected any time after Tuesday 17th December toLand fronting 103/104 Normoss Road , Poulton-Le-Fylde .Land at the first entrance to Pheasants Wood Drive , Bourne Way , Thornton Cleveleys .",Hire of Tools or Equipment
Wyre Council,http://opendatacommunities.org/doc/district-council/wyre,30/12/2019,People and Places,Central Services to the Public,131C,MOBILE MINI UK LTD,17/12/2019,PE125687,1387.80,0.00,"2 no 32ft mobile units delivered on Tuesday 3rd December and collected any time after Tuesday 17th December toLand fronting 103/104 Normoss Road , Poulton-Le-Fylde .Land at the first entrance to Pheasants Wood Drive , Bourne Way , Thornton Cleveleys .",Hire of Tools or Equipment
Wyre Council,http://opendatacommunities.org/doc/district-council/wyre,30/12/2019,People and Places,Central Services to the Public,131C,MOBILE MINI UK LTD,17/12/2019,PE125686,840.00,0.00,"2 no 32ft mobile units delivered on Tuesday 3rd December and collected any time after Tuesday 17th December toLand fronting 103/104 Normoss Road , Poulton-Le-Fylde .Land at the first entrance to Pheasants Wood Drive , Bourne Way , Thornton Cleveleys .",Hire of Tools or Equipment
Wyre Council,http://opendatacommunities.org/doc/district-council/wyre,30/12/2019,People and Places,Central Services to the Public,131C,SMITHS EQUIPMENT HIRE,19/12/2019,PE125857,83.00,0.00,Hire period for all 09/12/19-16/12/19Collection 2x10 KVA Generators and diesel for the week includes collection and delivery  422.80.also 2x Calor heaters @13:50 per week,Hire of Tools or Equipment
Wyre Council,http://opendatacommunities.org/doc/district-council/wyre,30/12/2019,People and Places,Central Services to the Public,131C,SMITHS EQUIPMENT HIRE,19/12/2019,PE125857,98.88,0.00,7KG BUTANE GAS REFIL 4@24.72,Hire of Tools or Equipment
Wyre Council,http://opendatacommunities.org/doc/district-council/wyre,30/12/2019,People and Places,Central Services to the Public,131C,SMITHS EQUIPMENT HIRE,19/12/2019,PE125856,580.00,0.00,To supply as per quote H05-502407.2 x Phase super silent generator and  Red Diesel (200 litres) +delivery and Collection,Hire of Tools or Equipment
Wyre Council,http://opendatacommunities.org/doc/district-council/wyre,30/12/2019,People and Places,Central Services to the Public,131C,SMITHS EQUIPMENT HIRE,20/12/2019,PE125914,198.38,0.00,to supply 4 calor heaters and gas cylinders for period 09/12/19 to 16/12/19 delivered to Copse Rd Depot. In addition to order PEO 0019870,Hire of Tools or Equipment
Wyre Council,http://opendatacommunities.org/doc/district-council/wyre,30/12/2019,People and Places,Central Services to the Public,131C,SMITHS EQUIPMENT HIRE,20/12/2019,PE125841,87.75,0.00,Generator Hire for elections  11/12/19 - 13/12/19,Hire of Tools or Equipment
Wyre Council,http://opendatacommunities.org/doc/district-council/wyre,30/12/2019,People and Places,Environmental Services,132B,POULTON PETS LTD,06/12/2019,PE125530,1268.50,0.00,Provision of stray dog kennelling serviceServices in 2019/20,Impounded Dogs Costs
Wyre Council,http://opendatacommunities.org/doc/district-council/wyre,30/12/2019,Resources,Corporate and Democratic Core,131A,DAISY COMMUNICATIONS LTD,20/12/2019,RS125799,9.48,0.00,MONTHLY CHARGES,Internet and Telephone Charges
Wyre Council,http://opendatacommunities.org/doc/district-council/wyre,30/12/2019,Resources,Cultural and Related Services,132A,DAISY COMMUNICATIONS LTD,20/12/2019,RS125799,24.47,0.00,MONTHLY CHARGES,Internet and Telephone Charges
Wyre Council,http://opendatacommunities.org/doc/district-council/wyre,30/12/2019,Resources,Cultural and Related Services,132A,DAISY COMMUNICATIONS LTD,20/12/2019,RS125799,9.48,0.00,MONTHLY CHARGES,Internet and Telephone Charges
Wyre Council,http://opendatacommunities.org/doc/district-council/wyre,30/12/2019,Resources,Support Services,135B,DAISY COMMUNICATIONS LTD,20/12/2019,RS125799,18.96,0.00,MONTHLY CHARGES,Internet and Telephone Charges
Wyre Council,http://opendatacommunities.org/doc/district-council/wyre,30/12/2019,Resources,Support Services,135B,DAISY COMMUNICATIONS LTD,20/12/2019,RS125799,15.00,0.00,MONTHLY CHARGES,Internet and Telephone Charges
Wyre Council,http://opendatacommunities.org/doc/district-council/wyre,30/12/2019,Resources,Central Services to the Public,131C,LANCASHIRE COUNTY COUNCIL,19/12/2019,RS125898,713.00,0.00,Wyre Council Con29 Searches for November 2019 - Total 46 @ 15.50,L.C.C. Search Fees
Wyre Council,http://opendatacommunities.org/doc/district-council/wyre,30/12/2019,Resources,Housing General Fund,134A,NORTHGATE PUBLIC SERVICES UK LTD,20/12/2019,RS125918,10741.94,0.00,"NPS Software: PSCS Uprating,UC SDP, VEPs 2a",Licences
Wyre Council,http://opendatacommunities.org/doc/district-council/wyre,30/12/2019,People and Places,Highways,133B,LANCASHIRE COUNTY COUNCIL,10/12/2019,PE125627,11610.00,0.00,Carry out maintenance to Wyre Council unadopted lighting 2019-2020,Maint. of Unadopted Assets - Engineers
Wyre Council,http://opendatacommunities.org/doc/district-council/wyre,30/12/2019,People and Places,Highways,133B,M J WILKINSON,12/12/2019,PE125718,240.00,0.00,Tele handler to support repairs to navigation lights at KE Slipway,Maint. of Unadopted Assets - Engineers
Wyre Council,http://opendatacommunities.org/doc/district-council/wyre,30/12/2019,People and Places,Highways,133B,M J WILKINSON,12/12/2019,PE125716,290.00,0.00,Tele handler to support repairs to navigation lights at KE Slipway,Maint. of Unadopted Assets - Engineers
Wyre Council,http://opendatacommunities.org/doc/district-council/wyre,30/12/2019,People and Places,Highways,133B,MARK GARNER TREE SERVICES LTD,06/12/2019,PE125531,215.00,0.00,INVOICE 865Ryan ArrellCivic CentreBreck RDPoultonFY6 7PUDate: 07/11/195 ELVASTON RD: for removing dead cherry and stump grind                                       150.00 PLUS VATHAWTHORN RD: for cutting down stump and grinding below,Maintenance of Trees and Shrubs
Wyre Council,http://opendatacommunities.org/doc/district-council/wyre,30/12/2019,People and Places,Highways,133B,MARK GARNER TREE SERVICES LTD,18/12/2019,PE125843,260.00,0.00,INVOICE 872Ryan ArrellCivic CentreBreck RDPoultonFY6 7PUDate: 12/12/19CALL OUT WORK:MEADOWS AVE ? removed hung up limb over road                              95.00 PLUS VATSTANNAH CAR PARK CAF� ? removed fallen limb on roof and made,Maintenance of Trees and Shrubs
Wyre Council,http://opendatacommunities.org/doc/district-council/wyre,30/12/2019,People and Places,Highways,133B,MARK GARNER TREE SERVICES LTD,18/12/2019,PE125844,650.00,0.00,"QUOTATION 0511R ArrellCivic CentreBreck RdPoultonDate: 10/12/19TOWERS WOOD: (entrance) for removing 2 Elm, 1 Sycamore and tall cankered chestnutgrind stumps                        I quote 650.00 PLUS VATM J Garner",Maintenance of Trees and Shrubs
Wyre Council,http://opendatacommunities.org/doc/district-council/wyre,30/12/2019,People and Places,Highways,133B,MARK GARNER TREE SERVICES LTD,12/12/2019,PE125740,500.00,0.00,R ArrellCivic CentreBreck RdPoultonDate: 27/11/19HOLMFIELD CLOSE THORNTON: for removing chestnut and plum tree grind stumps                        I quote 500.00 PLUS VAT,Maintenance of Trees and Shrubs
Wyre Council,http://opendatacommunities.org/doc/district-council/wyre,30/12/2019,People and Places,Support Services,135B,BANNISTER HALL LANDSCAPE SUPPLIES,16/12/2019,PE125789,1430.50,0.00,Please supply and deliver: 15 (UK grown) x quercus robur (10-12 girth) 62.00 each ?1 sorbus aucuparia (10-12) 36.00?10 Corylus avellana (in 60/80cm in 2 litre pots) 2.25 each?10 crataegus monogyna 150/180cm fthd 7.80 each?1 Picea Abies 2.,Materials and Consumables
Wyre Council,http://opendatacommunities.org/doc/district-council/wyre,30/12/2019,People and Places,Environmental Services,132B,F M WASTE LTD,05/12/2019,PE125514,460.16,0.00,Provision of skips to Chatsworth Depot to enable disposal of Sea Defence waste,Materials and Consumables
Wyre Council,http://opendatacommunities.org/doc/district-council/wyre,30/12/2019,People and Places,Support Services,135B,J A JONES & SONS,05/12/2019,PE125435,1540.00,0.00,"Please supply and deliver to Wyre Council Copse Road Depot, Copse Road, Fleetwood FY7 6RP (On week commencing 18 November 2019).15 x UK grown Quercus robur  RB 12-14cm (85.00 each + vat)40 x 5`6 to 6? long 3? to 4? diameter (uniform) tanalised po",Materials and Consumables
Wyre Council,http://opendatacommunities.org/doc/district-council/wyre,30/12/2019,People and Places,Environmental Services,132B,KILLGERM CHEMICALS LTD,04/12/2019,PE125361,32.13,0.00,RACUMIN FOAM - RACFOAM500ML,Materials and Consumables
Wyre Council,http://opendatacommunities.org/doc/district-council/wyre,30/12/2019,People and Places,Environmental Services,132B,KILLGERM CHEMICALS LTD,04/12/2019,PE125361,244.00,0.00,SOREXA D - SOREXADO10K,Materials and Consumables
Wyre Council,http://opendatacommunities.org/doc/district-council/wyre,30/12/2019,People and Places,Environmental Services,132B,KILLGERM CHEMICALS LTD,04/12/2019,PE125361,172.00,0.00,CONTRAC BLOC - CONTRA008K,Materials and Consumables
Wyre Council,http://opendatacommunities.org/doc/district-council/wyre,30/12/2019,People and Places,Environmental Services,132B,KILLGERM CHEMICALS LTD,04/12/2019,PE125361,30.00,0.00,DETEX BLOX - DETEX004K,Materials and Consumables
Wyre Council,http://opendatacommunities.org/doc/district-council/wyre,30/12/2019,People and Places,Environmental Services,132B,KILLGERM CHEMICALS LTD,04/12/2019,PE125361,42.00,0.00,AF RAT BOX - AFRATBOX,Materials and Consumables
Wyre Council,http://opendatacommunities.org/doc/district-council/wyre,30/12/2019,People and Places,Environmental Services,132B,KILLGERM CHEMICALS LTD,04/12/2019,PE125361,21.50,0.00,BIG SNAP - E RAT TRAP - SNAPERAT,Materials and Consumables
Wyre Council,http://opendatacommunities.org/doc/district-council/wyre,30/12/2019,People and Places,Environmental Services,132B,KILLGERM CHEMICALS LTD,04/12/2019,PE125361,8.08,0.00,BAIT STATION WARNING STICKER - BAITSTATWARN,Materials and Consumables
Wyre Council,http://opendatacommunities.org/doc/district-council/wyre,30/12/2019,People and Places,Environmental Services,132B,KILLGERM CHEMICALS LTD,04/12/2019,PE125361,8.00,0.00,DANGER POISON WARNING LABEL - LABELDPI,Materials and Consumables
Wyre Council,http://opendatacommunities.org/doc/district-council/wyre,30/12/2019,People and Places,Environmental Services,132B,KILLGERM CHEMICALS LTD,04/12/2019,PE125361,12.34,0.00,POISON RODENT BAIT - LABELPI,Materials and Consumables
Wyre Council,http://opendatacommunities.org/doc/district-council/wyre,30/12/2019,People and Places,Environmental Services,132B,KILLGERM CHEMICALS LTD,04/12/2019,PE125361,48.00,0.00,RATIMOR DIFENACOUM BLOCKS - RATIDIFBLOCK5K,Materials and Consumables
Wyre Council,http://opendatacommunities.org/doc/district-council/wyre,30/12/2019,People and Places,Environmental Services,132B,KILLGERM CHEMICALS LTD,04/12/2019,PE125361,14.00,0.00,SAKARAT D WHOLE WHEAT- SAKD010K,Materials and Consumables
Wyre Council,http://opendatacommunities.org/doc/district-council/wyre,30/12/2019,People and Places,Environmental Services,132B,KILLGERM CHEMICALS LTD,04/12/2019,PE125361,1.16,0.00,FLEA BULB - FLEA BULB,Materials and Consumables
Wyre Council,http://opendatacommunities.org/doc/district-council/wyre,30/12/2019,People and Places,Environmental Services,132B,KILLGERM CHEMICALS LTD,04/12/2019,PE125361,10.90,0.00,FLEA PADS - FLEA PADS,Materials and Consumables
Wyre Council,http://opendatacommunities.org/doc/district-council/wyre,30/12/2019,People and Places,Environmental Services,132B,KILLGERM CHEMICALS LTD,04/12/2019,PE125361,43.56,0.00,DETECT-A-GLOVES DETECGLOXL,Materials and Consumables
Wyre Council,http://opendatacommunities.org/doc/district-council/wyre,30/12/2019,People and Places,Environmental Services,132B,KILLGERM CHEMICALS LTD,04/12/2019,PE125361,11.52,0.00,DISPOSABLE OVER SHOE - DISPSHOE,Materials and Consumables
Wyre Council,http://opendatacommunities.org/doc/district-council/wyre,30/12/2019,People and Places,Environmental Services,132B,KILLGERM CHEMICALS LTD,04/12/2019,PE125361,32.80,0.00,ANTI-BAC GORILLA  WIPES - GORILLAPK80,Materials and Consumables
Wyre Council,http://opendatacommunities.org/doc/district-council/wyre,30/12/2019,People and Places,Support Services,135B,LYRECO UK LTD,05/12/2019,PE125459,2.45,0.00,LYRECO A4 GLOSS LAMINATING POUCHES 250 MICRON (2 X 125) - PACK OF 100,Materials and Consumables
Wyre Council,http://opendatacommunities.org/doc/district-council/wyre,30/12/2019,People and Places,Environmental Services,132B,M J WILKINSON,12/12/2019,PE125718,530.85,0.00,Miscellaneous wagons/dumpers for spoils  SEA WALL WORKS,Materials and Consumables
Wyre Council,http://opendatacommunities.org/doc/district-council/wyre,30/12/2019,People and Places,Environmental Services,132B,PROBRUSH T/A NORTHERN MUNICIPAL SPARES LTD,12/12/2019,PE125662,1932.48,0.00,To Supply:72 each Spec-B5000-7002269 410/760mm Poly & Wire Brush3 x M10 bolts @ 280mm PCD @ 40deg @ 37.16 each + vatReference Quotation 18978,Materials and Consumables
Wyre Council,http://opendatacommunities.org/doc/district-council/wyre,30/12/2019,People and Places,Environmental Services,132B,TARMAC TRADING LTD,13/12/2019,PE125773,367.20,0.00,Reinstating funds on tarmac P/O that had been written off when P/O was accidently closed,Materials and Consumables
Wyre Council,http://opendatacommunities.org/doc/district-council/wyre,30/12/2019,People and Places,Environmental Services,132B,TARMAC TRADING LTD,13/12/2019,PE125778,688.50,0.00,Reinstating funds on tarmac P/O that had been written off when P/O was accidently closed,Materials and Consumables
Wyre Council,http://opendatacommunities.org/doc/district-council/wyre,30/12/2019,People and Places,Environmental Services,132B,TARMAC TRADING LTD,13/12/2019,PE125781,21.25,0.00,Reinstating funds on tarmac P/O that had been written off when P/O was accidently closed,Materials and Consumables
Wyre Council,http://opendatacommunities.org/doc/district-council/wyre,30/12/2019,Resources,Housing General Fund,134A,HOLDEN ACCESS SOLUTIONS LTD,06/12/2019,RS125540,124.00,0.00,REDACT,Minor Adaptations
Wyre Council,http://opendatacommunities.org/doc/district-council/wyre,30/12/2019,Resources,Housing General Fund,134A,HOLDEN ACCESS SOLUTIONS LTD,06/12/2019,RS125540,30.00,0.00,REDACT,Minor Adaptations
Wyre Council,http://opendatacommunities.org/doc/district-council/wyre,30/12/2019,Resources,Housing General Fund,134A,HOLDEN ACCESS SOLUTIONS LTD,06/12/2019,RS125539,268.00,0.00,REDACT,Minor Adaptations
Wyre Council,http://opendatacommunities.org/doc/district-council/wyre,30/12/2019,Resources,Housing General Fund,134A,HOLDEN ACCESS SOLUTIONS LTD,06/12/2019,RS125539,40.00,0.00,REDACT,Minor Adaptations
Wyre Council,http://opendatacommunities.org/doc/district-council/wyre,30/12/2019,Resources,Housing General Fund,134A,HOLDEN ACCESS SOLUTIONS LTD,06/12/2019,RS125544,595.00,0.00,REDACT,Minor Adaptations
Wyre Council,http://opendatacommunities.org/doc/district-council/wyre,30/12/2019,Resources,Housing General Fund,134A,HOLDEN ACCESS SOLUTIONS LTD,06/12/2019,RS125544,50.00,0.00,REDACT,Minor Adaptations
Wyre Council,http://opendatacommunities.org/doc/district-council/wyre,30/12/2019,Resources,Housing General Fund,134A,HOLDEN ACCESS SOLUTIONS LTD,06/12/2019,RS125543,483.00,0.00,REDACT,Minor Adaptations
Wyre Council,http://opendatacommunities.org/doc/district-council/wyre,30/12/2019,Resources,Housing General Fund,134A,HOLDEN ACCESS SOLUTIONS LTD,06/12/2019,RS125543,50.00,0.00,REDACT,Minor Adaptations
Wyre Council,http://opendatacommunities.org/doc/district-council/wyre,30/12/2019,Resources,Housing General Fund,134A,HOLDEN ACCESS SOLUTIONS LTD,06/12/2019,RS125542,124.00,0.00,REDACT,Minor Adaptations
Wyre Council,http://opendatacommunities.org/doc/district-council/wyre,30/12/2019,Resources,Housing General Fund,134A,HOLDEN ACCESS SOLUTIONS LTD,06/12/2019,RS125542,30.00,0.00,REDACT,Minor Adaptations
Wyre Council,http://opendatacommunities.org/doc/district-council/wyre,30/12/2019,Resources,Housing General Fund,134A,HOLDEN ACCESS SOLUTIONS LTD,06/12/2019,RS125541,124.00,0.00,REDACT,Minor Adaptations
Wyre Council,http://opendatacommunities.org/doc/district-council/wyre,30/12/2019,Resources,Housing General Fund,134A,HOLDEN ACCESS SOLUTIONS LTD,06/12/2019,RS125541,30.00,0.00,REDACT,Minor Adaptations
Wyre Council,http://opendatacommunities.org/doc/district-council/wyre,30/12/2019,Resources,Housing General Fund,134A,HOLDEN ACCESS SOLUTIONS LTD,06/12/2019,RS125551,124.00,0.00,REDACT,Minor Adaptations
Wyre Council,http://opendatacommunities.org/doc/district-council/wyre,30/12/2019,Resources,Housing General Fund,134A,HOLDEN ACCESS SOLUTIONS LTD,06/12/2019,RS125551,30.00,0.00,REDACT,Minor Adaptations
Wyre Council,http://opendatacommunities.org/doc/district-council/wyre,30/12/2019,Resources,Housing General Fund,134A,HOLDEN ACCESS SOLUTIONS LTD,06/12/2019,RS125547,268.00,0.00,REDACT,Minor Adaptations
Wyre Council,http://opendatacommunities.org/doc/district-council/wyre,30/12/2019,Resources,Housing General Fund,134A,HOLDEN ACCESS SOLUTIONS LTD,06/12/2019,RS125547,40.00,0.00,REDACT,Minor Adaptations
Wyre Council,http://opendatacommunities.org/doc/district-council/wyre,30/12/2019,Resources,Housing General Fund,134A,HOLDEN ACCESS SOLUTIONS LTD,06/12/2019,RS125546,268.00,0.00,REDACT,Minor Adaptations
Wyre Council,http://opendatacommunities.org/doc/district-council/wyre,30/12/2019,Resources,Housing General Fund,134A,HOLDEN ACCESS SOLUTIONS LTD,06/12/2019,RS125546,40.00,0.00,REDACT,Minor Adaptations
Wyre Council,http://opendatacommunities.org/doc/district-council/wyre,30/12/2019,Resources,Housing General Fund,134A,HOLDEN ACCESS SOLUTIONS LTD,06/12/2019,RS125545,124.00,0.00,REDACT,Minor Adaptations
Wyre Council,http://opendatacommunities.org/doc/district-council/wyre,30/12/2019,Resources,Housing General Fund,134A,HOLDEN ACCESS SOLUTIONS LTD,06/12/2019,RS125545,30.00,0.00,REDACT,Minor Adaptations
Wyre Council,http://opendatacommunities.org/doc/district-council/wyre,30/12/2019,Resources,Housing General Fund,134A,HOLDEN ACCESS SOLUTIONS LTD,17/12/2019,RS125820,103.00,0.00,REDACT,Minor Adaptations
Wyre Council,http://opendatacommunities.org/doc/district-council/wyre,30/12/2019,Resources,Housing General Fund,134A,HOLDEN ACCESS SOLUTIONS LTD,17/12/2019,RS125820,30.00,0.00,REDACT,Minor Adaptations
Wyre Council,http://opendatacommunities.org/doc/district-council/wyre,30/12/2019,Resources,Housing General Fund,134A,HOLDEN ACCESS SOLUTIONS LTD,17/12/2019,RS125819,258.44,0.00,REDACT,Minor Adaptations
Wyre Council,http://opendatacommunities.org/doc/district-council/wyre,30/12/2019,Resources,Housing General Fund,134A,HOLDEN ACCESS SOLUTIONS LTD,17/12/2019,RS125819,40.00,0.00,REDACT,Minor Adaptations
Wyre Council,http://opendatacommunities.org/doc/district-council/wyre,30/12/2019,Resources,Housing General Fund,134A,HOLDEN ACCESS SOLUTIONS LTD,17/12/2019,RS125818,401.00,0.00,REDACT,Minor Adaptations
Wyre Council,http://opendatacommunities.org/doc/district-council/wyre,30/12/2019,Resources,Housing General Fund,134A,HOLDEN ACCESS SOLUTIONS LTD,17/12/2019,RS125818,40.00,0.00,REDACT,Minor Adaptations
Wyre Council,http://opendatacommunities.org/doc/district-council/wyre,30/12/2019,Resources,Housing General Fund,134A,HOLDEN ACCESS SOLUTIONS LTD,17/12/2019,RS125817,247.00,0.00,REDACT,Minor Adaptations
Wyre Council,http://opendatacommunities.org/doc/district-council/wyre,30/12/2019,Resources,Housing General Fund,134A,HOLDEN ACCESS SOLUTIONS LTD,17/12/2019,RS125817,40.00,0.00,REDACT,Minor Adaptations
Wyre Council,http://opendatacommunities.org/doc/district-council/wyre,30/12/2019,Resources,Housing General Fund,134A,HOLDEN ACCESS SOLUTIONS LTD,17/12/2019,RS125822,124.00,0.00,REDACT,Minor Adaptations
Wyre Council,http://opendatacommunities.org/doc/district-council/wyre,30/12/2019,Resources,Housing General Fund,134A,HOLDEN ACCESS SOLUTIONS LTD,17/12/2019,RS125822,30.00,0.00,REDACT,Minor Adaptations
Wyre Council,http://opendatacommunities.org/doc/district-council/wyre,30/12/2019,Resources,Housing General Fund,134A,HOLDEN ACCESS SOLUTIONS LTD,17/12/2019,RS125821,103.00,0.00,REDACT,Minor Adaptations
Wyre Council,http://opendatacommunities.org/doc/district-council/wyre,30/12/2019,Resources,Housing General Fund,134A,HOLDEN ACCESS SOLUTIONS LTD,17/12/2019,RS125821,30.00,0.00,REDACT,Minor Adaptations
Wyre Council,http://opendatacommunities.org/doc/district-council/wyre,30/12/2019,Resources,Housing General Fund,134A,MOBILITY CARE SERVICES,06/12/2019,RS125576,154.00,0.00,REDACT,Minor Adaptations
Wyre Council,http://opendatacommunities.org/doc/district-council/wyre,30/12/2019,Resources,Housing General Fund,134A,MOBILITY CARE SERVICES,06/12/2019,RS125575,154.00,0.00,REDACT,Minor Adaptations
Wyre Council,http://opendatacommunities.org/doc/district-council/wyre,30/12/2019,Resources,Housing General Fund,134A,MOBILITY CARE SERVICES,06/12/2019,RS125574,85.00,0.00,REDACT,Minor Adaptations
Wyre Council,http://opendatacommunities.org/doc/district-council/wyre,30/12/2019,Resources,Housing General Fund,134A,MOBILITY CARE SERVICES,06/12/2019,RS125573,66.00,0.00,REDACT,Minor Adaptations
Wyre Council,http://opendatacommunities.org/doc/district-council/wyre,30/12/2019,Resources,Housing General Fund,134A,MOBILITY CARE SERVICES,06/12/2019,RS125572,140.00,0.00,REDACT,Minor Adaptations
Wyre Council,http://opendatacommunities.org/doc/district-council/wyre,30/12/2019,Resources,Housing General Fund,134A,MOBILITY CARE SERVICES,06/12/2019,RS125571,132.00,0.00,REDACT,Minor Adaptations
Wyre Council,http://opendatacommunities.org/doc/district-council/wyre,30/12/2019,Resources,Housing General Fund,134A,MOBILITY CARE SERVICES,06/12/2019,RS125570,66.00,0.00,REDACT,Minor Adaptations
Wyre Council,http://opendatacommunities.org/doc/district-council/wyre,30/12/2019,Resources,Housing General Fund,134A,MOBILITY CARE SERVICES,06/12/2019,RS125567,132.00,0.00,REDACT,Minor Adaptations
Wyre Council,http://opendatacommunities.org/doc/district-council/wyre,30/12/2019,Resources,Housing General Fund,134A,MOBILITY CARE SERVICES,06/12/2019,RS125566,45.00,0.00,REDACT,Minor Adaptations
Wyre Council,http://opendatacommunities.org/doc/district-council/wyre,30/12/2019,Resources,Housing General Fund,134A,MOBILITY CARE SERVICES,06/12/2019,RS125565,66.00,0.00,REDACT,Minor Adaptations
Wyre Council,http://opendatacommunities.org/doc/district-council/wyre,30/12/2019,Resources,Housing General Fund,134A,MOBILITY CARE SERVICES,06/12/2019,RS125552,628.00,0.00,REDACT,Minor Adaptations
Wyre Council,http://opendatacommunities.org/doc/district-council/wyre,30/12/2019,Resources,Housing General Fund,134A,MOBILITY CARE SERVICES,06/12/2019,RS125554,308.00,0.00,REDACT,Minor Adaptations
Wyre Council,http://opendatacommunities.org/doc/district-council/wyre,30/12/2019,Resources,Housing General Fund,134A,MOBILITY CARE SERVICES,06/12/2019,RS125553,360.00,0.00,REDACT,Minor Adaptations
Wyre Council,http://opendatacommunities.org/doc/district-council/wyre,30/12/2019,Resources,Housing General Fund,134A,MOBILITY CARE SERVICES,06/12/2019,RS125564,80.00,0.00,REDACT,Minor Adaptations
Wyre Council,http://opendatacommunities.org/doc/district-council/wyre,30/12/2019,Resources,Housing General Fund,134A,MOBILITY CARE SERVICES,06/12/2019,RS125557,60.00,0.00,REDACT,Minor Adaptations
Wyre Council,http://opendatacommunities.org/doc/district-council/wyre,30/12/2019,Resources,Housing General Fund,134A,MOBILITY CARE SERVICES,06/12/2019,RS125556,85.00,0.00,REDACT,Minor Adaptations
Wyre Council,http://opendatacommunities.org/doc/district-council/wyre,30/12/2019,Resources,Housing General Fund,134A,MOBILITY CARE SERVICES,06/12/2019,RS125555,220.00,0.00,REDACT,Minor Adaptations
Wyre Council,http://opendatacommunities.org/doc/district-council/wyre,30/12/2019,Resources,Housing General Fund,134A,MOBILITY CARE SERVICES,06/12/2019,RS125597,334.00,0.00,REDACT,Minor Adaptations
Wyre Council,http://opendatacommunities.org/doc/district-council/wyre,30/12/2019,Resources,Housing General Fund,134A,MOBILITY CARE SERVICES,06/12/2019,RS125596,154.00,0.00,REDACT,Minor Adaptations
Wyre Council,http://opendatacommunities.org/doc/district-council/wyre,30/12/2019,Resources,Housing General Fund,134A,MOBILITY CARE SERVICES,06/12/2019,RS125595,308.00,0.00,REDACT,Minor Adaptations
Wyre Council,http://opendatacommunities.org/doc/district-council/wyre,30/12/2019,Resources,Housing General Fund,134A,MOBILITY CARE SERVICES,06/12/2019,RS125594,75.00,0.00,REDACT,Minor Adaptations
Wyre Council,http://opendatacommunities.org/doc/district-council/wyre,30/12/2019,Resources,Housing General Fund,134A,MOBILITY CARE SERVICES,06/12/2019,RS125593,66.00,0.00,REDACT,Minor Adaptations
Wyre Council,http://opendatacommunities.org/doc/district-council/wyre,30/12/2019,Resources,Housing General Fund,134A,MOBILITY CARE SERVICES,06/12/2019,RS125592,154.00,0.00,REDACT,Minor Adaptations
Wyre Council,http://opendatacommunities.org/doc/district-council/wyre,30/12/2019,Resources,Housing General Fund,134A,MOBILITY CARE SERVICES,06/12/2019,RS125591,75.00,0.00,REDACT,Minor Adaptations
Wyre Council,http://opendatacommunities.org/doc/district-council/wyre,30/12/2019,Resources,Housing General Fund,134A,MOBILITY CARE SERVICES,06/12/2019,RS125590,198.00,0.00,REDACT,Minor Adaptations
Wyre Council,http://opendatacommunities.org/doc/district-council/wyre,30/12/2019,Resources,Housing General Fund,134A,MOBILITY CARE SERVICES,06/12/2019,RS125589,374.00,0.00,REDACT,Minor Adaptations
Wyre Council,http://opendatacommunities.org/doc/district-council/wyre,30/12/2019,Resources,Housing General Fund,134A,MOBILITY CARE SERVICES,06/12/2019,RS125588,441.00,0.00,REDACT,Minor Adaptations
Wyre Council,http://opendatacommunities.org/doc/district-council/wyre,30/12/2019,Resources,Housing General Fund,134A,MOBILITY CARE SERVICES,06/12/2019,RS125587,133.00,0.00,REDACT,Minor Adaptations
Wyre Council,http://opendatacommunities.org/doc/district-council/wyre,30/12/2019,Resources,Housing General Fund,134A,MOBILITY CARE SERVICES,06/12/2019,RS125586,360.00,0.00,REDACT,Minor Adaptations
Wyre Council,http://opendatacommunities.org/doc/district-council/wyre,30/12/2019,Resources,Housing General Fund,134A,MOBILITY CARE SERVICES,06/12/2019,RS125585,45.00,0.00,REDACT,Minor Adaptations
Wyre Council,http://opendatacommunities.org/doc/district-council/wyre,30/12/2019,Resources,Housing General Fund,134A,MOBILITY CARE SERVICES,06/12/2019,RS125584,308.00,0.00,REDACT,Minor Adaptations
Wyre Council,http://opendatacommunities.org/doc/district-council/wyre,30/12/2019,Resources,Housing General Fund,134A,MOBILITY CARE SERVICES,06/12/2019,RS125583,320.00,0.00,REDACT,Minor Adaptations
Wyre Council,http://opendatacommunities.org/doc/district-council/wyre,30/12/2019,Resources,Housing General Fund,134A,MOBILITY CARE SERVICES,06/12/2019,RS125582,66.00,0.00,REDACT,Minor Adaptations
Wyre Council,http://opendatacommunities.org/doc/district-council/wyre,30/12/2019,Resources,Housing General Fund,134A,MOBILITY CARE SERVICES,06/12/2019,RS125581,180.00,0.00,REDACT,Minor Adaptations
Wyre Council,http://opendatacommunities.org/doc/district-council/wyre,30/12/2019,Resources,Housing General Fund,134A,MOBILITY CARE SERVICES,06/12/2019,RS125580,66.00,0.00,REDACT,Minor Adaptations
Wyre Council,http://opendatacommunities.org/doc/district-council/wyre,30/12/2019,Resources,Housing General Fund,134A,MOBILITY CARE SERVICES,06/12/2019,RS125579,66.00,0.00,REDACT,Minor Adaptations
Wyre Council,http://opendatacommunities.org/doc/district-council/wyre,30/12/2019,Resources,Housing General Fund,134A,MOBILITY CARE SERVICES,06/12/2019,RS125578,45.00,0.00,REDACT,Minor Adaptations
Wyre Council,http://opendatacommunities.org/doc/district-council/wyre,30/12/2019,Resources,Housing General Fund,134A,MOBILITY CARE SERVICES,06/12/2019,RS125577,154.00,0.00,REDACT,Minor Adaptations
Wyre Council,http://opendatacommunities.org/doc/district-council/wyre,30/12/2019,Resources,Housing General Fund,134A,MOBILITY CARE SERVICES,06/12/2019,RS125569,388.00,0.00,REDACT,Minor Adaptations
Wyre Council,http://opendatacommunities.org/doc/district-council/wyre,30/12/2019,Resources,Housing General Fund,134A,MOBILITY CARE SERVICES,06/12/2019,RS125568,132.00,0.00,REDACT,Minor Adaptations
Wyre Council,http://opendatacommunities.org/doc/district-council/wyre,30/12/2019,Resources,Housing General Fund,134A,MOBILITY CARE SERVICES,06/12/2019,RS125563,133.00,0.00,REDACT,Minor Adaptations
Wyre Council,http://opendatacommunities.org/doc/district-council/wyre,30/12/2019,Resources,Housing General Fund,134A,MOBILITY CARE SERVICES,06/12/2019,RS125562,133.00,0.00,REDACT,Minor Adaptations
Wyre Council,http://opendatacommunities.org/doc/district-council/wyre,30/12/2019,Resources,Housing General Fund,134A,MOBILITY CARE SERVICES,06/12/2019,RS125561,287.00,0.00,REDACT,Minor Adaptations
Wyre Council,http://opendatacommunities.org/doc/district-council/wyre,30/12/2019,Resources,Housing General Fund,134A,MOBILITY CARE SERVICES,06/12/2019,RS125560,688.00,0.00,REDACT,Minor Adaptations
Wyre Council,http://opendatacommunities.org/doc/district-council/wyre,30/12/2019,Resources,Housing General Fund,134A,MOBILITY CARE SERVICES,06/12/2019,RS125559,308.00,0.00,REDACT,Minor Adaptations
Wyre Council,http://opendatacommunities.org/doc/district-council/wyre,30/12/2019,Resources,Housing General Fund,134A,MOBILITY CARE SERVICES,06/12/2019,RS125558,80.00,0.00,REDACT,Minor Adaptations
Wyre Council,http://opendatacommunities.org/doc/district-council/wyre,30/12/2019,Finance,Current Assets,130B,,18/12/2019,R51/002295,3150.00,0.00,Caboodle Technology Comp Share,Miscellaneous Debits
Wyre Council,http://opendatacommunities.org/doc/district-council/wyre,30/12/2019,Resources,Housing General Fund,134A,LOCATA HOUSING SERVICES LTD,18/12/2019,RS125836,8000.00,0.00,Locata HPA 2 Homelessness System,New Burden`s Grant
Wyre Council,http://opendatacommunities.org/doc/district-council/wyre,30/12/2019,Finance,Current Assets,130B,,03/12/2019,R21/002195,87148.39,0.00,NNDR Refunds,NNDR Refunds
Wyre Council,http://opendatacommunities.org/doc/district-council/wyre,30/12/2019,Finance,Current Assets,130B,,18/12/2019,R51/002292,33671.24,0.00,NNDR Refunds,NNDR Refunds
Wyre Council,http://opendatacommunities.org/doc/district-council/wyre,30/12/2019,Finance,Current Assets,130B,,18/12/2019,R51/002705,4137.01,0.00,NNDR Refunds,NNDR Refunds
Wyre Council,http://opendatacommunities.org/doc/district-council/wyre,30/12/2019,Finance,Collection Fund Revenue Accts,138A,DEPARTMENT FOR COMMUNITIES AND LOCAL GOVERNMENT,23/12/2019,R40/002479,495714.00,0.00,DCLG BRR central share,NNDR Tariff to Government
Wyre Council,http://opendatacommunities.org/doc/district-council/wyre,30/12/2019,Finance,General Fund below the line,136A,DEPARTMENT FOR COMMUNITIES AND LOCAL GOVERNMENT,23/12/2019,R40/002484,860871.00,0.00,Ribble Valley BC,NNDR Tariff to Government
Wyre Council,http://opendatacommunities.org/doc/district-council/wyre,30/12/2019,Resources,Parking Services,133F,NSL SERVICES GROUP,05/12/2019,RS125487,366.84,0.00,fees,Other Parking Fees and Commission
Wyre Council,http://opendatacommunities.org/doc/district-council/wyre,30/12/2019,People and Places,Environmental Services,132B,D HOLLOWELL & SONS LTD,12/12/2019,PE125728,894.00,0.00,REDACT,Other Rechargeable Services
Wyre Council,http://opendatacommunities.org/doc/district-council/wyre,30/12/2019,People and Places,Parking Services,133F,TARMAC TRADING LTD,13/12/2019,PE125772,500.66,0.00,Miscellaneous aggregate to various car parks (say 4 deliveries per year),"Paths, Roads and Car Park Mtnce Annual"
Wyre Council,http://opendatacommunities.org/doc/district-council/wyre,30/12/2019,Finance,Corporate and Democratic Core,131A,LANCASHIRE COUNTY COUNCIL,03/12/2019,R21/002192,17043.20,0.00,LCC pensions,Pension Increase Act Payments
Wyre Council,http://opendatacommunities.org/doc/district-council/wyre,30/12/2019,Finance,Housing General Fund,134A,,05/12/2019,R48/002892,68252.68,0.00,LCC pension strain October 19,Pension Strain
Wyre Council,http://opendatacommunities.org/doc/district-council/wyre,30/12/2019,Finance,Central Services to the Public,131C,SANTANDER,09/12/2019,R36/002575,1040.10,0.00,Santander,Plastic Cards Processing Fees
Wyre Council,http://opendatacommunities.org/doc/district-council/wyre,30/12/2019,Resources,Support Services,135B,CRITIQOM LTD,06/12/2019,RS125522,10.00,0.00,monthly data infractions,Postage
Wyre Council,http://opendatacommunities.org/doc/district-council/wyre,30/12/2019,Resources,Central Services to the Public,131C,CRITIQOM LTD,10/12/2019,RS125602,664.82,0.00,ELECTORAL,Postage
Wyre Council,http://opendatacommunities.org/doc/district-council/wyre,30/12/2019,Resources,Housing General Fund,134A,CRITIQOM LTD,10/12/2019,RS125603,192.66,0.00,BENEFIT NOTIFICATIONS,Postage
Wyre Council,http://opendatacommunities.org/doc/district-council/wyre,30/12/2019,Resources,Housing General Fund,134A,CRITIQOM LTD,10/12/2019,RS125602,50.55,0.00,BENEFIT NOTIFICATINS,Postage
Wyre Council,http://opendatacommunities.org/doc/district-council/wyre,30/12/2019,Resources,Support Services,135B,CRITIQOM LTD,10/12/2019,RS125602,125.97,0.00,OFF SERV ADN=MIN,Postage
Wyre Council,http://opendatacommunities.org/doc/district-council/wyre,30/12/2019,Resources,Support Services,135B,CRITIQOM LTD,10/12/2019,RS125603,318.71,0.00,CTAX REMINDERS,Postage
Wyre Council,http://opendatacommunities.org/doc/district-council/wyre,30/12/2019,Resources,Support Services,135B,CRITIQOM LTD,10/12/2019,RS125603,14.33,0.00,NNDR REMINDERS,Postage
Wyre Council,http://opendatacommunities.org/doc/district-council/wyre,30/12/2019,Resources,Support Services,135B,CRITIQOM LTD,10/12/2019,RS125603,172.50,0.00,CTAX SUMMONS,Postage
Wyre Council,http://opendatacommunities.org/doc/district-council/wyre,30/12/2019,Resources,Support Services,135B,CRITIQOM LTD,10/12/2019,RS125603,8.13,0.00,NNDR SUMMONS,Postage
Wyre Council,http://opendatacommunities.org/doc/district-council/wyre,30/12/2019,Resources,Support Services,135B,CRITIQOM LTD,10/12/2019,RS125602,77.30,0.00,CTAX REMINDERS,Postage
Wyre Council,http://opendatacommunities.org/doc/district-council/wyre,30/12/2019,Resources,Support Services,135B,CRITIQOM LTD,10/12/2019,RS125602,1.48,0.00,NNDR REMINDERS,Postage
Wyre Council,http://opendatacommunities.org/doc/district-council/wyre,30/12/2019,Resources,Support Services,135B,CRITIQOM LTD,10/12/2019,RS125602,39.43,0.00,CTAX SUMMONS,Postage
Wyre Council,http://opendatacommunities.org/doc/district-council/wyre,30/12/2019,Resources,Support Services,135B,CRITIQOM LTD,10/12/2019,RS125602,1.51,0.00,NNDR SUMMONS,Postage
Wyre Council,http://opendatacommunities.org/doc/district-council/wyre,30/12/2019,Resources,Support Services,135B,CRITIQOM LTD,10/12/2019,RS125602,485.08,0.00,CC,Postage
Wyre Council,http://opendatacommunities.org/doc/district-council/wyre,30/12/2019,Resources,Central Services to the Public,131C,CRITIQOM LTD,10/12/2019,RS125603,1272.60,0.00,DAILY BILLS,Postage
Wyre Council,http://opendatacommunities.org/doc/district-council/wyre,30/12/2019,Resources,Central Services to the Public,131C,CRITIQOM LTD,10/12/2019,RS125602,185.33,0.00,DAILY BILLS,Postage
Wyre Council,http://opendatacommunities.org/doc/district-council/wyre,30/12/2019,Resources,Central Services to the Public,131C,ROYAL MAIL GROUP PLC,18/12/2019,RS125755,410.36,0.00,RESPONSE PLUS SERVICE,Postage
Wyre Council,http://opendatacommunities.org/doc/district-council/wyre,30/12/2019,Resources,Central Services to the Public,131C,ROYAL MAIL GROUP PLC,18/12/2019,RS125797,5015.54,0.00,REDSPONSE PLUS SERVICES,Postage
Wyre Council,http://opendatacommunities.org/doc/district-council/wyre,30/12/2019,Resources,Central Services to the Public,131C,ROYAL MAIL GROUP PLC,11/12/2019,RS125521,1561.08,0.00,PLUS RESPONSE,Postage
Wyre Council,http://opendatacommunities.org/doc/district-council/wyre,30/12/2019,Resources,Central Services to the Public,131C,ROYAL MAIL GROUP PLC,11/12/2019,RS125533,10337.06,0.00,mail unsorted,Postage
Wyre Council,http://opendatacommunities.org/doc/district-council/wyre,30/12/2019,Resources,Central Services to the Public,131C,ROYAL MAIL GROUP PLC,19/12/2019,RS125833,1587.61,0.00,ELECTORAL POSTAL CHARGES,Postage
Wyre Council,http://opendatacommunities.org/doc/district-council/wyre,30/12/2019,Resources,Central Services to the Public,131C,ROYAL MAIL GROUP PLC,05/12/2019,RS125405,557.17,0.00,response plus service,Postage
Wyre Council,http://opendatacommunities.org/doc/district-council/wyre,30/12/2019,Resources,Central Services to the Public,131C,CRITIQOM LTD,10/12/2019,RS125602,50.00,0.00,LARGE PRINT SET UP,Printing
Wyre Council,http://opendatacommunities.org/doc/district-council/wyre,30/12/2019,Resources,Environmental Services,132B,PRESTON CITY COUNCIL,10/12/2019,RS125599,167.94,0.00,2000 x Flooding leafletA4 2pp folded to DL 6ppDelivery to Civic Centre FAO Emma Lyons,Printing
Wyre Council,http://opendatacommunities.org/doc/district-council/wyre,30/12/2019,Resources,Central Services to the Public,131C,PRINT IMAGE NETWORK LTD,05/12/2019,RS125518,524.40,0.00,For supply of Wyre Large Print Ballot Papers as your order acknowledgement 6508.,Printing
Wyre Council,http://opendatacommunities.org/doc/district-council/wyre,30/12/2019,Resources,Central Services to the Public,131C,PRINT IMAGE NETWORK LTD,19/12/2019,RS125837,19091.17,0.00,For supply of Wyre Parliamentary Voter-peel Connect PV packs as per your order acknowledgement reference 6300.,Printing
Wyre Council,http://opendatacommunities.org/doc/district-council/wyre,30/12/2019,Resources,Central Services to the Public,131C,PRINT IMAGE NETWORK LTD,19/12/2019,RS125838,8778.00,0.00,For supply of Wyre Parliamentary Ballot Books as per your order acknowledgment reference 6376.,Printing
Wyre Council,http://opendatacommunities.org/doc/district-council/wyre,30/12/2019,People and Places,Support Services,135B,DCM PROJECTS LTD,19/12/2019,PE125884,1250.00,0.00,Wet Pout Repairs to the following as per quotation to Jane Ferguson:-Hambleton Playing Fields ? 25lm of perimeter repairs with a 250mm cutback ? Black - 1250 ex vatTithebarn Park ? 65lm of perimeter repairs with a 250mm cutback -  Black -  2548,Private Contractors
Wyre Council,http://opendatacommunities.org/doc/district-council/wyre,30/12/2019,People and Places,Support Services,135B,DCM PROJECTS LTD,19/12/2019,PE125887,2548.00,0.00,Wet Pout Repairs to the following as per quotation to Jane Ferguson:-  Hambleton Playing Fields ? 25lm of perimeter repairs with a 250mm cutback ? Black - 1250 ex vat  Tithebarn Park ? 65lm of perimeter repairs with a 250mm cutback -  Black -  2548 ex v,Private Contractors
Wyre Council,http://opendatacommunities.org/doc/district-council/wyre,30/12/2019,People and Places,Support Services,135B,DCM PROJECTS LTD,19/12/2019,PE125886,4792.00,0.00,Wet Pout Repairs to the following as per quotation to Jane Ferguson:-  Hambleton Playing Fields ? 25lm of perimeter repairs with a 250mm cutback ? Black - 1250 ex vat  Tithebarn Park ? 65lm of perimeter repairs with a 250mm cutback -  Black -  2548 ex v,Private Contractors
Wyre Council,http://opendatacommunities.org/doc/district-council/wyre,30/12/2019,People and Places,Cultural and Related Services,132A,MELROSE INVESTMENTS LTD,19/12/2019,PE125741,1428.25,0.00,Rent for Marsh Mill for the period 1/4/2018 to 31/3/2019. 1 paid quarterly.   Service charge for Marsh Mill for the period 1/4/2018 to 31/3/2019. 5712.00 paid quarterly.,Private Contractors
Wyre Council,http://opendatacommunities.org/doc/district-council/wyre,30/12/2019,Resources,Parking Services,133F,NSL SERVICES GROUP,05/12/2019,RS125487,3838.50,0.00,fees,Private Contractors
Wyre Council,http://opendatacommunities.org/doc/district-council/wyre,30/12/2019,People and Places,Public Transport,133G,WYRE MARINE SERVICES,13/12/2019,PE125751,7017.09,0.00,"Fleetwood - Knott End Ferry ServiceSchedule of Payments 2019-2012 April 2019 - 11 May 2019     7,017.0912 May 2019 - 11 June 2019    7.017.0912 June 2019 - 11 July 2019    7,017.0912 July 2019 - 11 Aug 2019      7.017.0912 Aug 2019 - 11",Private Contractors
Wyre Council,http://opendatacommunities.org/doc/district-council/wyre,30/12/2019,People and Places,Support Services,135B,WYRE MEMORIALS LTD,10/12/2019,PE125655,140.00,0.00,Fleetwood Cemetery Grave  NC/BB/60 Pauline BullenReplacement terrazzo base with two drilled holes for flower containers plus lockdown system. Damaged by council vehicle 3/7/2019,Private Contractors
Wyre Council,http://opendatacommunities.org/doc/district-council/wyre,30/12/2019,People and Places,Cultural and Related Services,132A,BLACKPOOL COUNCIL,18/12/2019,PE125816,-959.98,0.00,STAND PARTNERSHIP FEES,Promotions - General
Wyre Council,http://opendatacommunities.org/doc/district-council/wyre,30/12/2019,People and Places,Cultural and Related Services,132A,BLACKPOOL COUNCIL,18/12/2019,PE125683,959.98,0.00,STAND PARTNERSHIP FEES,Promotions - General
Wyre Council,http://opendatacommunities.org/doc/district-council/wyre,30/12/2019,People and Places,Cultural and Related Services,132A,BLACKPOOL COUNCIL,19/12/2019,PE125860,859.98,0.00,"Tourism Stand Partnership and accommodation between Visit Blackpool, Visit Fylde and Discover Wyre at the British Travel Trade Show in Birmingham - 25 and 26 Marsh 2020",Promotions - General
Wyre Council,http://opendatacommunities.org/doc/district-council/wyre,30/12/2019,People and Places,Cultural and Related Services,132A,LEONA BETH ILLUSTRATOR,04/12/2019,PE125473,1525.00,0.00,ArtistStudioIllustrationA1OutdoorMarketIllustrationA1Separateimagesfiles2xAmendments,Promotions - General
Wyre Council,http://opendatacommunities.org/doc/district-council/wyre,30/12/2019,People and Places,Environmental Services,132B,PRESTON CITY COUNCIL,10/12/2019,PE125598,417.00,0.00,"2500 x A5 Full Colour White Synthetic Removable Rolls of 500As per Quote Number 366Delivery to Copse Road Depot, FleetwoodFAO: Damian Bigley / James Sneddon",Promotions - General
Wyre Council,http://opendatacommunities.org/doc/district-council/wyre,30/12/2019,Resources,Cultural and Related Services,132A,PRESTON CITY COUNCIL,10/12/2019,RS125599,25.00,0.00,500 x Health Rides A5 1ppDelivery to Civic Centre FAO Angela Longstaff,Promotions - General
Wyre Council,http://opendatacommunities.org/doc/district-council/wyre,30/12/2019,Resources,Cultural and Related Services,132A,PRESTON CITY COUNCIL,10/12/2019,RS125599,89.58,0.00,2 x Fun Arts pull up banners (44.79 per banner)Delivery to Civic Centre FAO Kerry Cossens,Promotions - General
Wyre Council,http://opendatacommunities.org/doc/district-council/wyre,30/12/2019,Finance,Planning and Development Servs,132C,,09/12/2019,R36/002576,4000.00,0.00,Heartburn Entertainment,Promotions - General
Wyre Council,http://opendatacommunities.org/doc/district-council/wyre,30/12/2019,People and Places,Support Services,135B,KEY ENGINEERING & HYGIENE SUPPLIES LTD,06/12/2019,PE125449,7.18,0.00,"1 x Berlin Executive yellow Hi vis vest, code S476YERL, size 3XL with Wyre logo if possible @ 5.18 each   To be delivered to Wyre Council, People and Places Admin, Civic Centre, Breck Road, Poulton, FY6 7PU",Protective Clothing
Wyre Council,http://opendatacommunities.org/doc/district-council/wyre,30/12/2019,People and Places,Support Services,135B,KEY ENGINEERING & HYGIENE SUPPLIES LTD,06/12/2019,PE125449,42.44,0.00,Supply and deliver 4 x Disley white short sleeved shirts with wyre emb logo in size 17.5 @ 10.61 each,Protective Clothing
Wyre Council,http://opendatacommunities.org/doc/district-council/wyre,30/12/2019,People and Places,Support Services,135B,KEY ENGINEERING & HYGIENE SUPPLIES LTD,06/12/2019,PE125449,42.44,0.00,4 x Disley white short sleeved shirts with wyre emb logo in size 18.5 @ 10.61 each,Protective Clothing
Wyre Council,http://opendatacommunities.org/doc/district-council/wyre,30/12/2019,People and Places,Cultural and Related Services,132A,KEY ENGINEERING & HYGIENE SUPPLIES LTD,11/12/2019,PE125451,77.69,0.00,2 x safty shoes,Protective Clothing
Wyre Council,http://opendatacommunities.org/doc/district-council/wyre,30/12/2019,People and Places,Cultural and Related Services,132A,KEY ENGINEERING & HYGIENE SUPPLIES LTD,11/12/2019,PE125451,10.61,0.00,2 x safty shoes,Protective Clothing
Wyre Council,http://opendatacommunities.org/doc/district-council/wyre,30/12/2019,People and Places,Cultural and Related Services,132A,KEY ENGINEERING & HYGIENE SUPPLIES LTD,04/12/2019,PE125454,42.00,0.00,30 x safety gloves,Protective Clothing
Wyre Council,http://opendatacommunities.org/doc/district-council/wyre,30/12/2019,People and Places,Environmental Services,132B,KILLGERM CHEMICALS LTD,04/12/2019,PE125361,22.19,0.00,DISPOSABLE P2 MASKS - DISPFFP2,Protective Clothing
Wyre Council,http://opendatacommunities.org/doc/district-council/wyre,30/12/2019,People and Places,Environmental Services,132B,KILLGERM CHEMICALS LTD,04/12/2019,PE125361,14.52,0.00,DETECTA-GLOVES - DETECGLOL,Protective Clothing
Wyre Council,http://opendatacommunities.org/doc/district-council/wyre,30/12/2019,People and Places,Environmental Services,132B,KILLGERM CHEMICALS LTD,04/12/2019,PE125361,12.80,0.00,PREVENT SPRAY - PREVENT25G,Protective Clothing
Wyre Council,http://opendatacommunities.org/doc/district-council/wyre,30/12/2019,People and Places,Environmental Services,132B,KILLGERM CHEMICALS LTD,04/12/2019,PE125361,12.09,0.00,TYVEK OVERBOOTS - TYVBOOT20,Protective Clothing
Wyre Council,http://opendatacommunities.org/doc/district-council/wyre,30/12/2019,People and Places,Cultural and Related Services,132A,LYRECO UK LTD,10/12/2019,PE124866,10.98,0.00,PLASTERS BLUE DETECTABLE  ASSORTED SIZES (PACK OF 100),Protective Clothing
Wyre Council,http://opendatacommunities.org/doc/district-council/wyre,30/12/2019,People and Places,Environmental Services,132B,A & C WEBER UK LTD,16/12/2019,PE125794,1975.00,0.00,Green 240ltr 2 Wheeled Bin Lids @ 3.95 per lid,"Provision of Bins, Boxes and Sacks"
Wyre Council,http://opendatacommunities.org/doc/district-council/wyre,30/12/2019,People and Places,Environmental Services,132B,A & C WEBER UK LTD,16/12/2019,PE125794,1975.00,0.00,Blue 240ltr 2 Wheeled Bin Lids @ 3.95 per lidPrices as per ESPO Contract Schedule 860ADDPlease deliver with the bins we have on order for:w/c 18 November 2019Email address:sales@w-weber.com & d.elliott@w-weber.com & t.anklam@w-weber.com,"Provision of Bins, Boxes and Sacks"
Wyre Council,http://opendatacommunities.org/doc/district-council/wyre,30/12/2019,People and Places,Environmental Services,132B,KEY ENGINEERING & HYGIENE SUPPLIES LTD,06/12/2019,PE125449,714.00,0.00,"URGENT Supply and deliver of 50 boxes of strong blue refuse sacks, code BL2939BS @ 14.28 per box Please deliver to Copse Road Depot, Copse Road, Fleetwood, FY7 6RP","Provision of Bins, Boxes and Sacks"
Wyre Council,http://opendatacommunities.org/doc/district-council/wyre,30/12/2019,People and Places,Environmental Services,132B,VEOLIA ES (UK) LTD,19/12/2019,PE125861,387.21,0.00,Blue bins - delivery,"Provision of Bins, Boxes and Sacks"
Wyre Council,http://opendatacommunities.org/doc/district-council/wyre,30/12/2019,People and Places,Environmental Services,132B,VEOLIA ES (UK) LTD,19/12/2019,PE125861,570.05,0.00,Grey bins - delivery,"Provision of Bins, Boxes and Sacks"
Wyre Council,http://opendatacommunities.org/doc/district-council/wyre,30/12/2019,People and Places,Environmental Services,132B,VEOLIA ES (UK) LTD,19/12/2019,PE125861,1509.93,0.00,Boxes - provision and delivery,"Provision of Bins, Boxes and Sacks"
Wyre Council,http://opendatacommunities.org/doc/district-council/wyre,30/12/2019,People and Places,Environmental Services,132B,VEOLIA ES (UK) LTD,19/12/2019,PE125861,387.21,0.00,Unwanted binsPlease leave open and invoices will be drawn off each month,"Provision of Bins, Boxes and Sacks"
Wyre Council,http://opendatacommunities.org/doc/district-council/wyre,30/12/2019,People and Places,Environmental Services,132B,VEOLIA ES (UK) LTD,19/12/2019,PE125861,220.49,0.00,Green Bins - delivery,"Provision of Bins, Boxes and Sacks"
Wyre Council,http://opendatacommunities.org/doc/district-council/wyre,30/12/2019,Resources,Support Services,135B,LYRECO UK LTD,11/12/2019,RS125456,39.67,0.00,FELLOWES 8037601 BACK SUPPORT BLACK,Purchase Furniture
Wyre Council,http://opendatacommunities.org/doc/district-council/wyre,30/12/2019,People and Places,Planning and Development Servs,132C,EVOLUTION SECURITY SERVICES NW LTD,04/12/2019,PE125432,350.00,0.00,invoice no 31security supply19/11/2019security supply21/11/2019security supply22/11/2019security supply23/11/2019security supply 350   security supply,Purchase of Tools or Equipment
Wyre Council,http://opendatacommunities.org/doc/district-council/wyre,30/12/2019,Resources,Housing General Fund,134A,INSIGHT DIRECT (UK) LIMITED,20/12/2019,RS125934,175.32,0.00,x2 BenQ BL2205PT @ 87.66 each (Ex VAT)BL Series - LED Monitor - Full HD (1080p) - 21.5 InchInsight #:0004991292 Mfr. #: 9H.LE9LA.TBE UNSPSC: 43211902,Purchase of Tools or Equipment
Wyre Council,http://opendatacommunities.org/doc/district-council/wyre,30/12/2019,People and Places,Environmental Services,132B,KILLGERM CHEMICALS LTD,04/12/2019,PE125361,23.10,0.00,PESTICIDE CARRY BAG - PESTBAG 2,Purchase of Tools or Equipment
Wyre Council,http://opendatacommunities.org/doc/district-council/wyre,30/12/2019,People and Places,Environmental Services,132B,KILLGERM CHEMICALS LTD,04/12/2019,PE125361,6.94,0.00,PESTICIDE JAR - PEST JAR,Purchase of Tools or Equipment
Wyre Council,http://opendatacommunities.org/doc/district-council/wyre,30/12/2019,People and Places,Cultural and Related Services,132A,LYRECO UK LTD,04/12/2019,PE125458,7.68,0.00,LYRECO MULTI-PURPOSE WHITE LABELS 63.5 X 33.9MM - BOX OF 2400 (WITH SELVEDGE),Purchase of Tools or Equipment
Wyre Council,http://opendatacommunities.org/doc/district-council/wyre,30/12/2019,Resources,Support Services,135B,LYRECO UK LTD,05/12/2019,RS125462,1.21,0.00,LYRECO MULTI-PURPOSE WHITE LABELS 63.5 X 46.6MM - BOX OF 1800 (WITH SELVEDGE),Purchase of Tools or Equipment
Wyre Council,http://opendatacommunities.org/doc/district-council/wyre,30/12/2019,People and Places,Support Services,135B,LYRECO UK LTD,05/12/2019,PE125459,19.24,0.00,BROTHER DK11202 SHIPPING LABELS 62 X 100MM - BOX OF 300,Purchase of Tools or Equipment
Wyre Council,http://opendatacommunities.org/doc/district-council/wyre,30/12/2019,Resources,Support Services,135B,LYRECO UK LTD,11/12/2019,RS125456,7.82,0.00,Extra long tape,Purchase of Tools or Equipment
Wyre Council,http://opendatacommunities.org/doc/district-council/wyre,30/12/2019,Resources,Support Services,135B,LYRECO UK LTD,11/12/2019,RS125456,8.25,0.00,Rapitape Extra Long Tape Dispensor,Purchase of Tools or Equipment
Wyre Council,http://opendatacommunities.org/doc/district-council/wyre,30/12/2019,Resources,Support Services,135B,LYRECO UK LTD,11/12/2019,RS125456,1.92,0.00,PACK 490 AVERY PSA08R DOT LABELS DIA8MM RED,Purchase of Tools or Equipment
Wyre Council,http://opendatacommunities.org/doc/district-council/wyre,30/12/2019,Resources,Support Services,135B,LYRECO UK LTD,11/12/2019,RS125456,1.92,0.00,PK490 AVERY PSA08V DOT LABELS DIA8MM GREEN,Purchase of Tools or Equipment
Wyre Council,http://opendatacommunities.org/doc/district-council/wyre,30/12/2019,Resources,Support Services,135B,LYRECO UK LTD,11/12/2019,RS125456,7.79,0.00,METAL BOOK ENDS - PACK OF 2,Purchase of Tools or Equipment
Wyre Council,http://opendatacommunities.org/doc/district-council/wyre,30/12/2019,People and Places,Cultural and Related Services,132A,CONCEPT CONCERTS LTD,19/12/2019,PE125881,978.56,0.00,Refund of ticket sales - Tommy,Refund of Ticket Sales to Ext Promoters
Wyre Council,http://opendatacommunities.org/doc/district-council/wyre,30/12/2019,People and Places,Cultural and Related Services,132A,POULTON DRAMA,19/12/2019,PE125879,2920.00,0.00,Refund of ticket sales - TLT 20-23/11/19,Refund of Ticket Sales to Ext Promoters
Wyre Council,http://opendatacommunities.org/doc/district-council/wyre,30/12/2019,People and Places,Planning and Development Servs,132C,SUEZ RECYCLING AND RECOVERY UK LTD,11/12/2019,PE125524,582.40,0.00,waste removal marketsuez,Refuse Collection
Wyre Council,http://opendatacommunities.org/doc/district-council/wyre,30/12/2019,People and Places,Environmental Services,132B,BLACKPOOL COUNCIL,13/12/2019,PE125365,2937.35,0.00,Bulky Matters Service Recharge 19/20,Refuse Collection Contract
Wyre Council,http://opendatacommunities.org/doc/district-council/wyre,30/12/2019,People and Places,Environmental Services,132B,VEOLIA ES (UK) LTD,19/12/2019,PE125861,-1081.39,0.00,schedulke 2 repayment,Refuse Collection Contract
Wyre Council,http://opendatacommunities.org/doc/district-council/wyre,30/12/2019,People and Places,Environmental Services,132B,VEOLIA ES (UK) LTD,19/12/2019,PE125861,186661.08,0.00,Domestic Waste Management Collection  Contract 2019/20,Refuse Collection Contract
Wyre Council,http://opendatacommunities.org/doc/district-council/wyre,30/12/2019,Resources,Cultural and Related Services,132A,ROBERT PINKUS PROPERTY MANAGEMENT LTD,05/12/2019,RS125371,3990.00,0.00,quarterly rent and service charge in advance - garstang tic,Rents
Wyre Council,http://opendatacommunities.org/doc/district-council/wyre,30/12/2019,Resources,Environmental Services,132B,ROBERT PINKUS PROPERTY MANAGEMENT LTD,05/12/2019,RS125372,200.00,0.00,quarterly service charge park hill road public WCs,Rents
Wyre Council,http://opendatacommunities.org/doc/district-council/wyre,30/12/2019,People and Places,Cultural and Related Services,132A,EAS ELECTRICAL MECHANICAL,11/12/2019,PE125501,22.50,0.00,WORK CARRIED OUT AT MARINE HALL,Responsive Building Maintenance
Wyre Council,http://opendatacommunities.org/doc/district-council/wyre,30/12/2019,People and Places,Cultural and Related Services,132A,EAS ELECTRICAL MECHANICAL,11/12/2019,PE125430,122.10,0.00,WORK CARRIED OUT AT MARINE HALL,Responsive Building Maintenance
Wyre Council,http://opendatacommunities.org/doc/district-council/wyre,30/12/2019,People and Places,Cultural and Related Services,132A,EAS ELECTRICAL MECHANICAL,11/12/2019,PE125498,243.32,0.00,WORK CARRIED OUT AT THORNTON LITTLE THEATRE,Responsive Building Maintenance
Wyre Council,http://opendatacommunities.org/doc/district-council/wyre,30/12/2019,People and Places,Planning and Development Servs,132C,EAS ELECTRICAL MECHANICAL,11/12/2019,PE125499,165.70,0.00,WORK CARRIED OUT AT COPSE ROAD,Responsive Building Maintenance
Wyre Council,http://opendatacommunities.org/doc/district-council/wyre,30/12/2019,People and Places,Planning and Development Servs,132C,EAS ELECTRICAL MECHANICAL,11/12/2019,PE125429,135.00,0.00,WORK CARRIED OUT AT FLEETWOOD MARKET,Responsive Building Maintenance
Wyre Council,http://opendatacommunities.org/doc/district-council/wyre,30/12/2019,People and Places,Planning and Development Servs,132C,EAS ELECTRICAL MECHANICAL,12/12/2019,PE125431,75.00,0.00,REHANG AUTOMATIC DOORS AND RESET TIMING CHAIN,Responsive Building Maintenance
Wyre Council,http://opendatacommunities.org/doc/district-council/wyre,30/12/2019,People and Places,Planning and Development Servs,132C,GARRY CARR BUILDING SERVICES LTD,20/12/2019,PE125874,910.00,0.00,supply and fit composite door and frame,Responsive Building Maintenance
Wyre Council,http://opendatacommunities.org/doc/district-council/wyre,30/12/2019,People and Places,Planning and Development Servs,132C,GARRY CARR BUILDING SERVICES LTD,20/12/2019,PE125866,53.00,0.00,repair roof leak around skylight,Responsive Building Maintenance
Wyre Council,http://opendatacommunities.org/doc/district-council/wyre,30/12/2019,People and Places,Planning and Development Servs,132C,GARRY CARR BUILDING SERVICES LTD,13/12/2019,PE125676,2961.00,0.00,SUPPLY AND FIT DOORS TO UNIT,Responsive Building Maintenance
Wyre Council,http://opendatacommunities.org/doc/district-council/wyre,30/12/2019,People and Places,Cultural and Related Services,132A,GARRY CARR BUILDING SERVICES LTD,20/12/2019,PE125873,43.00,0.00,building services,Responsive Building Maintenance
Wyre Council,http://opendatacommunities.org/doc/district-council/wyre,30/12/2019,People and Places,Cultural and Related Services,132A,GARRY CARR BUILDING SERVICES LTD,20/12/2019,PE125865,69.00,0.00,concrete repair underside canopy,Responsive Building Maintenance
Wyre Council,http://opendatacommunities.org/doc/district-council/wyre,30/12/2019,People and Places,Cultural and Related Services,132A,GARRY CARR BUILDING SERVICES LTD,20/12/2019,PE125869,56.00,0.00,seal brickwork and cladding,Responsive Building Maintenance
Wyre Council,http://opendatacommunities.org/doc/district-council/wyre,30/12/2019,People and Places,Cultural and Related Services,132A,GARRY CARR BUILDING SERVICES LTD,20/12/2019,PE125872,105.00,0.00,repair single doors due to vandalism,Responsive Building Maintenance
Wyre Council,http://opendatacommunities.org/doc/district-council/wyre,30/12/2019,People and Places,Cultural and Related Services,132A,GARRY CARR BUILDING SERVICES LTD,20/12/2019,PE125867,71.00,0.00,repair vandalised shutter,Responsive Building Maintenance
Wyre Council,http://opendatacommunities.org/doc/district-council/wyre,30/12/2019,People and Places,Cultural and Related Services,132A,GARRY CARR BUILDING SERVICES LTD,20/12/2019,PE125871,22.00,0.00,apply tape to cracked kitchen window,Responsive Building Maintenance
Wyre Council,http://opendatacommunities.org/doc/district-council/wyre,30/12/2019,People and Places,Cultural and Related Services,132A,GARRY CARR BUILDING SERVICES LTD,20/12/2019,PE125870,143.00,0.00,roof leak to foyer,Responsive Building Maintenance
Wyre Council,http://opendatacommunities.org/doc/district-council/wyre,30/12/2019,People and Places,Cultural and Related Services,132A,GARRY CARR BUILDING SERVICES LTD,13/12/2019,PE125672,187.00,0.00,EMERGENCY REPAIRS,Responsive Building Maintenance
Wyre Council,http://opendatacommunities.org/doc/district-council/wyre,30/12/2019,People and Places,Cultural and Related Services,132A,GARRY CARR BUILDING SERVICES LTD,13/12/2019,PE125674,229.00,0.00,SUPPLY AND FIT HEAVY DUTY CURTAIM RAIL TO MAIN THEATRE DOORS,Responsive Building Maintenance
Wyre Council,http://opendatacommunities.org/doc/district-council/wyre,30/12/2019,People and Places,Cultural and Related Services,132A,GARRY CARR BUILDING SERVICES LTD,13/12/2019,PE125677,360.00,0.00,REPLACE 3 SECTION OF WIRED GLASS TO THEATRE ENTRANCE DOORS,Responsive Building Maintenance
Wyre Council,http://opendatacommunities.org/doc/district-council/wyre,30/12/2019,People and Places,Planning and Development Servs,132C,OPAL DESIGN LTD,13/12/2019,PE125509,1126.00,0.00,SUPPLY AND FIT FAN AND AIR PS & DELIVERY,Responsive Building Maintenance
Wyre Council,http://opendatacommunities.org/doc/district-council/wyre,30/12/2019,People and Places,Cultural and Related Services,132A,OPAL DESIGN LTD,11/12/2019,PE125504,158.64,0.00,WORK CARRIED OUT AT GARDENER ROOM,Responsive Building Maintenance
Wyre Council,http://opendatacommunities.org/doc/district-council/wyre,30/12/2019,People and Places,Cultural and Related Services,132A,OPAL DESIGN LTD,11/12/2019,PE125508,45.37,0.00,WORK CARRIED OUT AT SANDINGHAM ALLOTMENTS,Responsive Building Maintenance
Wyre Council,http://opendatacommunities.org/doc/district-council/wyre,30/12/2019,People and Places,Planning and Development Servs,132C,OPAL DESIGN LTD,11/12/2019,PE125505,129.67,0.00,WORK CARRIED OUT AT COPSE ROAD,Responsive Building Maintenance
Wyre Council,http://opendatacommunities.org/doc/district-council/wyre,30/12/2019,People and Places,Environmental Services,132B,SHARD SURFACING LTD,05/12/2019,PE125470,256.48,0.00,Repair entrance & footpath - Poulton Cemetery - labour,Responsive Building Maintenance
Wyre Council,http://opendatacommunities.org/doc/district-council/wyre,30/12/2019,People and Places,Environmental Services,132B,SHARD SURFACING LTD,05/12/2019,PE125470,659.52,0.00,materials,Responsive Building Maintenance
Wyre Council,http://opendatacommunities.org/doc/district-council/wyre,30/12/2019,People and Places,Support Services,135B,F M WASTE LTD,05/12/2019,PE125517,180.00,0.00,To supply as delivered  skips and waste removal invoices number 27274+ 27276,Routine Maintenance
Wyre Council,http://opendatacommunities.org/doc/district-council/wyre,30/12/2019,People and Places,Support Services,135B,F M WASTE LTD,05/12/2019,PE125515,280.00,0.00,To supply as delivered  skips and waste removal invoices number 27274+ 27276,Routine Maintenance
Wyre Council,http://opendatacommunities.org/doc/district-council/wyre,30/12/2019,People and Places,Support Services,135B,M J WILKINSON,12/12/2019,PE125722,751.12,0.00,Additional works Rede Avenue,Routine Maintenance
Wyre Council,http://opendatacommunities.org/doc/district-council/wyre,30/12/2019,People and Places,Environmental Services,132B,BARTEC AUTO ID LIMITED,04/12/2019,PE125482,23750.00,0.00,Bartec Collective IC150 In-vehicle terminal hardware (No 19 @ 1250.00),Service Development Board Contribution
Wyre Council,http://opendatacommunities.org/doc/district-council/wyre,30/12/2019,People and Places,Environmental Services,132B,BARTEC AUTO ID LIMITED,04/12/2019,PE125482,1500.00,0.00,"TomTom BridgeThis will form part of a seven year contract with annual hosting and data fixed at 12,600 pa commencing 01/04/19 to be invoiced on an annual basisAccess to software in advance for round developmentFull mobilisation meeting to be",Service Development Board Contribution
Wyre Council,http://opendatacommunities.org/doc/district-council/wyre,30/12/2019,People and Places,Central Services to the Public,131C,WATER PLUS LTD,17/12/2019,PE125033,50.22,0.00,WATER/WASTEWATER CHARGES FOR THE PERIOD 10/6/19-10/10/19,Sewerage
Wyre Council,http://opendatacommunities.org/doc/district-council/wyre,30/12/2019,People and Places,Cultural and Related Services,132A,WATER PLUS LTD,17/12/2019,PE125033,220.18,0.00,WATER/WASTEWATER CHARGES FOR THE PERIOD 10/6/19-10/10/19,Sewerage
Wyre Council,http://opendatacommunities.org/doc/district-council/wyre,30/12/2019,People and Places,Cultural and Related Services,132A,WATER PLUS LTD,17/12/2019,PE125033,257.52,0.00,WATER/WASTEWATER CHARGES FOR THE PERIOD 10/6/19-10/10/19,Sewerage
Wyre Council,http://opendatacommunities.org/doc/district-council/wyre,30/12/2019,People and Places,Cultural and Related Services,132A,WATER PLUS LTD,17/12/2019,PE125033,54.08,0.00,WATER/WASTEWATER CHARGES FOR THE PERIOD 10/6/19-10/10/19,Sewerage
Wyre Council,http://opendatacommunities.org/doc/district-council/wyre,30/12/2019,People and Places,Cultural and Related Services,132A,WATER PLUS LTD,17/12/2019,PE125033,289.72,0.00,WATER/WASTEWATER CHARGES FOR THE PERIOD 10/6/19-10/10/19,Sewerage
Wyre Council,http://opendatacommunities.org/doc/district-council/wyre,30/12/2019,People and Places,Cultural and Related Services,132A,WATER PLUS LTD,17/12/2019,PE125033,42.49,0.00,WATER/WASTEWATER CHARGES FOR THE PERIOD 10/6/19-10/10/19,Sewerage
Wyre Council,http://opendatacommunities.org/doc/district-council/wyre,30/12/2019,People and Places,Cultural and Related Services,132A,WATER PLUS LTD,17/12/2019,PE125033,36.07,0.00,WATER/WASTEWATER CHARGES FOR THE PERIOD 10/6/19-10/10/19,Sewerage
Wyre Council,http://opendatacommunities.org/doc/district-council/wyre,30/12/2019,People and Places,Cultural and Related Services,132A,WATER PLUS LTD,17/12/2019,PE125033,127.94,0.00,WATER/WASTEWATER CHARGES FOR THE PERIOD 10/6/19-10/10/19,Sewerage
Wyre Council,http://opendatacommunities.org/doc/district-council/wyre,30/12/2019,People and Places,Cultural and Related Services,132A,WATER PLUS LTD,17/12/2019,PE125033,29.61,0.00,WATER/WASTEWATER CHARGES FOR THE PERIOD 10/6/19-10/10/19,Sewerage
Wyre Council,http://opendatacommunities.org/doc/district-council/wyre,30/12/2019,People and Places,Environmental Services,132B,WATER PLUS LTD,17/12/2019,PE125033,39.93,0.00,WATER/WASTEWATER CHARGES FOR THE PERIOD 10/6/19-10/10/19,Sewerage
Wyre Council,http://opendatacommunities.org/doc/district-council/wyre,30/12/2019,People and Places,Environmental Services,132B,WATER PLUS LTD,17/12/2019,PE125033,3.86,0.00,WATER/WASTEWATER CHARGES FOR THE PERIOD 10/6/19-10/10/19,Sewerage
Wyre Council,http://opendatacommunities.org/doc/district-council/wyre,30/12/2019,People and Places,Environmental Services,132B,WATER PLUS LTD,17/12/2019,PE125033,11.60,0.00,WATER/WASTEWATER CHARGES FOR THE PERIOD 10/6/19-10/10/19,Sewerage
Wyre Council,http://opendatacommunities.org/doc/district-council/wyre,30/12/2019,People and Places,Environmental Services,132B,WATER PLUS LTD,17/12/2019,PE125033,596.20,0.00,WATER/WASTEWATER CHARGES FOR THE PERIOD 10/6/19-10/10/19,Sewerage
Wyre Council,http://opendatacommunities.org/doc/district-council/wyre,30/12/2019,People and Places,Planning and Development Servs,132C,WATER PLUS LTD,17/12/2019,PE125033,30.90,0.00,WATER/WASTEWATER CHARGES FOR THE PERIOD 10/6/19-10/10/19,Sewerage
Wyre Council,http://opendatacommunities.org/doc/district-council/wyre,30/12/2019,People and Places,Support Services,135B,WATER PLUS LTD,17/12/2019,PE125033,211.17,0.00,WATER/WASTEWATER CHARGES FOR THE PERIOD 10/6/19-10/10/19,Sewerage
Wyre Council,http://opendatacommunities.org/doc/district-council/wyre,30/12/2019,People and Places,Cultural and Related Services,132A,WATER PLUS LTD,17/12/2019,PE125033,588.43,0.00,WATER/WASTEWATER CHARGES FOR THE PERIOD 10/6/19-10/10/19,Sewerage
Wyre Council,http://opendatacommunities.org/doc/district-council/wyre,30/12/2019,People and Places,Cultural and Related Services,132A,WATER PLUS LTD,17/12/2019,PE125033,9.01,0.00,WATER/WASTEWATER CHARGES FOR THE PERIOD 10/6/19-10/10/19,Sewerage
Wyre Council,http://opendatacommunities.org/doc/district-council/wyre,30/12/2019,People and Places,Cultural and Related Services,132A,WATER PLUS LTD,17/12/2019,PE125033,1.29,0.00,WATER/WASTEWATER CHARGES FOR THE PERIOD 10/6/19-10/10/19,Sewerage
Wyre Council,http://opendatacommunities.org/doc/district-council/wyre,30/12/2019,Resources,Support Services,135B,CROWN COMPUTING LTD,13/12/2019,RS125777,975.00,0.00,Crown WFM G Cloud Framework Monthly Application Support for the year commencing 01/04/19 @ 975.00 per month,Software Maintenance
Wyre Council,http://opendatacommunities.org/doc/district-council/wyre,30/12/2019,Resources,Support Services,135B,DAISY COMMUNICATIONS LTD,20/12/2019,RS125799,38.48,0.00,MONTHLY CHARGES,Software Maintenance
Wyre Council,http://opendatacommunities.org/doc/district-council/wyre,30/12/2019,People and Places,Cultural and Related Services,132A,GARRY CARR BUILDING SERVICES LTD,13/12/2019,PE125673,90.00,0.00,OPERATE SAILS 24/11- MARSH MILL,Special Events
Wyre Council,http://opendatacommunities.org/doc/district-council/wyre,30/12/2019,People and Places,Cultural and Related Services,132A,LISA WIGHAM,06/12/2019,PE125609,2000.00,0.00,"Remaining payments of Stage 2 of ?Breathing Space? Art Commission with Memorial Park, Fleetwood for Wyre Council.Artists Fee for September 2019- February 2020: 7950.00Payment includes: Research, travel, workshop planning and delivery. Final artwork",Special Events
Wyre Council,http://opendatacommunities.org/doc/district-council/wyre,30/12/2019,Resources,Cultural and Related Services,132A,PRESTON CITY COUNCIL,10/12/2019,RS125599,89.58,0.00,2 x Following Owen Pull-Up bannersDelivery to Civic Centre FAO Chris Wyatt,Special Events
Wyre Council,http://opendatacommunities.org/doc/district-council/wyre,30/12/2019,People and Places,Support Services,135B,MARK GARNER TREE SERVICES LTD,18/12/2019,PE125843,145.00,0.00,PHEASANTS WOOD ? 2large Oak trees 2 hanging limbs on each and dead wooding                              145.00 PLUS VAT,Special Maintenance - Trees
Wyre Council,http://opendatacommunities.org/doc/district-council/wyre,30/12/2019,People and Places,Support Services,135B,MARK GARNER TREE SERVICES LTD,18/12/2019,PE125855,125.00,0.00,Date: 17/12/19TITHEBARN PARK: for stump grinding                      125.00 PLUS VAT,Special Maintenance - Trees
Wyre Council,http://opendatacommunities.org/doc/district-council/wyre,30/12/2019,People and Places,Support Services,135B,MARK GARNER TREE SERVICES LTD,11/12/2019,PE125679,290.99,0.00,INVOICE 870Ryan ArrellCivic CentreBreck RDPoultonFY6 7PUDate: 28/11/19MEMORIAL PARK FLEETWOOD: for removing leaning Hawthorn as per your instruction                             195.00 PLUS VAT                        ST CHADS CHURCH: f,Special Maintenance - Trees
Wyre Council,http://opendatacommunities.org/doc/district-council/wyre,30/12/2019,People and Places,Environmental Services,132B,THE COLUMBARIA COMPANY,04/12/2019,PE125463,10180.00,0.00,Honeycomb Panorama Sandown plus delivery -  Fleetwood Cemetery,Special Works
Wyre Council,http://opendatacommunities.org/doc/district-council/wyre,30/12/2019,People and Places,Environmental Services,132B,WYRE MEMORIALS LTD,12/12/2019,PE125654,50.00,0.00,Fleetwood Cemetery RC/W/39 Syms Remove headstone,Special Works
Wyre Council,http://opendatacommunities.org/doc/district-council/wyre,30/12/2019,People and Places,Environmental Services,132B,WYRE MEMORIALS LTD,12/12/2019,PE125654,85.00,0.00,Refix CE/X/208 Dewhirst,Special Works
Wyre Council,http://opendatacommunities.org/doc/district-council/wyre,30/12/2019,People and Places,Environmental Services,132B,WYRE MEMORIALS LTD,12/12/2019,PE125661,60.00,0.00,Fleetwood CemeteryPlease remove large double heart headstoneCE/X/180McDonald,Special Works
Wyre Council,http://opendatacommunities.org/doc/district-council/wyre,30/12/2019,People and Places,Environmental Services,132B,WYRE MEMORIALS LTD,11/12/2019,PE125665,145.00,0.00,Fleetwood Cemetery - Reomive & refix CE/P/173  (Ince)Burial Behind P/158 (Clapp),Special Works
Wyre Council,http://opendatacommunities.org/doc/district-council/wyre,30/12/2019,People and Places,Environmental Services,132B,WYRE MEMORIALS LTD,11/12/2019,PE125664,50.00,0.00,Hd/St moving RC/W/415 `Cottam` for bunal Fleetwood Cem,Special Works
Wyre Council,http://opendatacommunities.org/doc/district-council/wyre,30/12/2019,People and Places,Environmental Services,132B,WYRE MEMORIALS LTD,11/12/2019,PE125666,50.00,0.00,Move Hd/st CarterCE/C/48 Preesall Cemetery,Special Works
Wyre Council,http://opendatacommunities.org/doc/district-council/wyre,30/12/2019,People and Places,Environmental Services,132B,WYRE MEMORIALS LTD,11/12/2019,PE124801,165.00,0.00,Ratcliffe AB/39 Poulton new remove and refix,Special Works
Wyre Council,http://opendatacommunities.org/doc/district-council/wyre,30/12/2019,People and Places,Environmental Services,132B,WYRE MEMORIALS LTD,11/12/2019,PE124801,50.00,0.00, to move NewA/126 Irving Poulton Cem /,Special Works
Wyre Council,http://opendatacommunities.org/doc/district-council/wyre,30/12/2019,People and Places,Environmental Services,132B,WYRE MEMORIALS LTD,13/12/2019,PE125652,50.00,0.00,Lowe - V32 To remove the memorial in preparation for burial,Special Works
Wyre Council,http://opendatacommunities.org/doc/district-council/wyre,30/12/2019,People and Places,Environmental Services,132B,WYRE MEMORIALS LTD,13/12/2019,PE125652,100.00,0.00,Replace Terra 220 on T/277B `Latus`,Special Works
Wyre Council,http://opendatacommunities.org/doc/district-council/wyre,30/12/2019,People and Places,Cultural and Related Services,132A,LYRECO UK LTD,10/12/2019,PE124866,3.19,0.00,A4 Plain EnvelopesSelf Sealx1 Box,Stationery
Wyre Council,http://opendatacommunities.org/doc/district-council/wyre,30/12/2019,People and Places,Cultural and Related Services,132A,LYRECO UK LTD,10/12/2019,PE124866,61.00,0.00,2ND CLASS POSTAGE STAMPS - PACK OF 100,Stationery
Wyre Council,http://opendatacommunities.org/doc/district-council/wyre,30/12/2019,People and Places,Cultural and Related Services,132A,LYRECO UK LTD,10/12/2019,PE124866,4.30,0.00,LYRECO BUDGET WHITE DL SELF SEAL WINDOW ENVELOPES 80GSM - BOX OF 1000,Stationery
Wyre Council,http://opendatacommunities.org/doc/district-council/wyre,30/12/2019,People and Places,Cultural and Related Services,132A,LYRECO UK LTD,10/12/2019,PE124866,3.85,0.00,LYRECO BUDGET WHITE DL SELF SEAL PLAIN ENVELOPES 80GSM - BOX OF 1000,Stationery
Wyre Council,http://opendatacommunities.org/doc/district-council/wyre,30/12/2019,People and Places,Cultural and Related Services,132A,LYRECO UK LTD,10/12/2019,PE124866,61.00,0.00,2ND CLASS POSTAGE STAMPS - PACK OF 100,Stationery
Wyre Council,http://opendatacommunities.org/doc/district-council/wyre,30/12/2019,People and Places,Cultural and Related Services,132A,LYRECO UK LTD,10/12/2019,PE124866,5.38,0.00,LYRECO A3 GLOSS LAMINATING POUCHES 150 MICRON (2 X 75) - PACK OF 100,Stationery
Wyre Council,http://opendatacommunities.org/doc/district-council/wyre,30/12/2019,People and Places,Cultural and Related Services,132A,LYRECO UK LTD,10/12/2019,PE124866,2.86,0.00,LYRECO A4 GLOSS LAMINATING POUCHES 150 MICRON (2 X 75) - PACK OF 100,Stationery
Wyre Council,http://opendatacommunities.org/doc/district-council/wyre,30/12/2019,People and Places,Cultural and Related Services,132A,LYRECO UK LTD,10/12/2019,PE124866,28.00,0.00,LYRECO BUDGET COPIER PAPER 75G A4 WHITE - BOX OF 5 REAMS (2500 SHEETS),Stationery
Wyre Council,http://opendatacommunities.org/doc/district-council/wyre,30/12/2019,Resources,Central Services to the Public,131C,LYRECO UK LTD,11/12/2019,RS125456,3.47,0.00,LYRECO WHITE C5 SELF SEAL PLAIN ENVELOPES 90GSM - BOX OF 500,Stationery
Wyre Council,http://opendatacommunities.org/doc/district-council/wyre,30/12/2019,Resources,Central Services to the Public,131C,LYRECO UK LTD,11/12/2019,RS125456,8.60,0.00,LYRECO BUDGET WHITE DL SELF SEAL WINDOW ENVELOPES 80GSM - BOX OF 1000,Stationery
Wyre Council,http://opendatacommunities.org/doc/district-council/wyre,30/12/2019,Resources,Central Services to the Public,131C,LYRECO UK LTD,11/12/2019,RS125456,20.99,0.00,1 pack of Punched pockets,Stationery
Wyre Council,http://opendatacommunities.org/doc/district-council/wyre,30/12/2019,Resources,Housing General Fund,134A,LYRECO UK LTD,11/12/2019,RS125456,15.84,0.00,Impega Flipchart Pads,Stationery
Wyre Council,http://opendatacommunities.org/doc/district-council/wyre,30/12/2019,Resources,Housing General Fund,134A,LYRECO UK LTD,11/12/2019,RS125456,17.93,0.00,BIC CRISTAL MEDIUM BALL POINT PEN BLACK - BOX OF 90 PLUS 10 FREE PENS,Stationery
Wyre Council,http://opendatacommunities.org/doc/district-council/wyre,30/12/2019,Resources,Support Services,135B,LYRECO UK LTD,04/12/2019,RS125462,12.32,0.00,LYRECO ENVELOPE DL 90 GRAM 100 PERCENT RECYCLED WITH WINDOW WHITE - BOX OF 1000,Stationery
Wyre Council,http://opendatacommunities.org/doc/district-council/wyre,30/12/2019,Resources,Support Services,135B,LYRECO UK LTD,04/12/2019,RS125462,3.47,0.00,LYRECO MANILLA DL GUMMED PLAIN ENVELOPES 70GSM - BOX OF 1000,Stationery
Wyre Council,http://opendatacommunities.org/doc/district-council/wyre,30/12/2019,Resources,Support Services,135B,LYRECO UK LTD,04/12/2019,RS125462,3.29,0.00,LYRECO WHITE C4 SELF SEAL WINDOW ENVELOPES 100GSM - BOX OF 250,Stationery
Wyre Council,http://opendatacommunities.org/doc/district-council/wyre,30/12/2019,Resources,Support Services,135B,LYRECO UK LTD,04/12/2019,RS125462,0.16,0.00,LYRECO STAPLES 26/6 - BOX OF 5000,Stationery
Wyre Council,http://opendatacommunities.org/doc/district-council/wyre,30/12/2019,Resources,Support Services,135B,LYRECO UK LTD,04/12/2019,RS125462,0.06,0.00,LYRECO STAPLE REMOVER BLACK,Stationery
Wyre Council,http://opendatacommunities.org/doc/district-council/wyre,30/12/2019,Resources,Support Services,135B,LYRECO UK LTD,04/12/2019,RS125462,3.77,0.00,POST-IT INDEX SIGN HERE 25 X 44 MM,Stationery
Wyre Council,http://opendatacommunities.org/doc/district-council/wyre,30/12/2019,Resources,Support Services,135B,LYRECO UK LTD,04/12/2019,RS125462,0.48,0.00,LYRECO BUDGET ASSORTED COLOUR HIGHLIGHTERS - WALLET OF 6,Stationery
Wyre Council,http://opendatacommunities.org/doc/district-council/wyre,30/12/2019,Resources,Support Services,135B,LYRECO UK LTD,04/12/2019,RS125462,0.22,0.00,SHATTERPROOF RULER 30CM / 12 INCHES CLEAR,Stationery
Wyre Council,http://opendatacommunities.org/doc/district-council/wyre,30/12/2019,Resources,Support Services,135B,LYRECO UK LTD,04/12/2019,RS125462,17.93,0.00,BIC CRISTAL MEDIUM BALL POINT PEN BLUE - BOX OF 90 PLUS 10 FREE PENS,Stationery
Wyre Council,http://opendatacommunities.org/doc/district-council/wyre,30/12/2019,Resources,Support Services,135B,LYRECO UK LTD,04/12/2019,RS125462,17.93,0.00,BIC CRISTAL MEDIUM BALL POINT PEN BLACK - BOX OF 90 PLUS 10 FREE PENS,Stationery
Wyre Council,http://opendatacommunities.org/doc/district-council/wyre,30/12/2019,People and Places,Cultural and Related Services,132A,LYRECO UK LTD,04/12/2019,PE125458,110.95,0.00,THERMAL TILL ROLLS 80 X 75 X 12.7MM - BOX OF 20,Stationery
Wyre Council,http://opendatacommunities.org/doc/district-council/wyre,30/12/2019,People and Places,Cultural and Related Services,132A,LYRECO UK LTD,04/12/2019,PE125458,61.00,0.00,2ND CLASS POSTAGE STAMPS - PACK OF 100,Stationery
Wyre Council,http://opendatacommunities.org/doc/district-council/wyre,30/12/2019,People and Places,Cultural and Related Services,132A,LYRECO UK LTD,04/12/2019,PE125458,9.80,0.00,LYRECO BULLET TIP BLACK PERMANENT MARKERS - BOX OF 10,Stationery
Wyre Council,http://opendatacommunities.org/doc/district-council/wyre,30/12/2019,People and Places,Cultural and Related Services,132A,LYRECO UK LTD,04/12/2019,PE125458,9.84,0.00,LYRECO WEEK/VIEW DIARY A4 BLK,Stationery
Wyre Council,http://opendatacommunities.org/doc/district-council/wyre,30/12/2019,People and Places,Cultural and Related Services,132A,LYRECO UK LTD,04/12/2019,PE125458,5.64,0.00,LYRECO BUDGET A4 PUNCHED POCKETS 55 MICRON-PACK OF 100,Stationery
Wyre Council,http://opendatacommunities.org/doc/district-council/wyre,30/12/2019,People and Places,Cultural and Related Services,132A,LYRECO UK LTD,04/12/2019,PE125458,122.00,0.00,2ND CLASS POSTAGE STAMPS - PACK OF 100,Stationery
Wyre Council,http://opendatacommunities.org/doc/district-council/wyre,30/12/2019,People and Places,Support Services,135B,LYRECO UK LTD,05/12/2019,PE125459,8.45,0.00,LYRECO HARD BACK TWIN WIRE NOTEBOOK A4 - PACK OF 5,Stationery
Wyre Council,http://opendatacommunities.org/doc/district-council/wyre,30/12/2019,People and Places,Support Services,135B,LYRECO UK LTD,05/12/2019,PE125459,4.10,0.00,LYRECO BUDGET BLACK A4 LEVER ARCH FILE 75MM,Stationery
Wyre Council,http://opendatacommunities.org/doc/district-council/wyre,30/12/2019,People and Places,Support Services,135B,LYRECO UK LTD,05/12/2019,PE125459,2.50,0.00,LYRECO BLUE A4 2 O-RING BINDER 40MM,Stationery
Wyre Council,http://opendatacommunities.org/doc/district-council/wyre,30/12/2019,People and Places,Support Services,135B,LYRECO UK LTD,05/12/2019,PE125461,46.20,0.00,LYRECO MULTI PURPOSE PAPER A4 75GSM - BOX OF 5 REAMS (5 X 500 SHEETS),Stationery
Wyre Council,http://opendatacommunities.org/doc/district-council/wyre,30/12/2019,People and Places,Support Services,135B,LYRECO UK LTD,05/12/2019,PE125461,3.36,0.00,LYRECO BUDGET CLEAR STICKY TAPE 25MM X 66M - PACK OF 6,Stationery
Wyre Council,http://opendatacommunities.org/doc/district-council/wyre,30/12/2019,People and Places,Support Services,135B,LYRECO UK LTD,05/12/2019,PE125459,2.01,0.00,LYRECO GLUE STICK - STANDARD 10G,Stationery
Wyre Council,http://opendatacommunities.org/doc/district-council/wyre,30/12/2019,People and Places,Support Services,135B,LYRECO UK LTD,05/12/2019,PE125459,3.29,0.00,LYRECO WHITE C4 SELF SEAL WINDOW ENVELOPES 100GSM - BOX OF 250,Stationery
Wyre Council,http://opendatacommunities.org/doc/district-council/wyre,30/12/2019,People and Places,Support Services,135B,LYRECO UK LTD,05/12/2019,PE125459,17.93,0.00,BIC CRISTAL MEDIUM BALL POINT PEN BLUE - BOX OF 90 PLUS 10 FREE PENS,Stationery
Wyre Council,http://opendatacommunities.org/doc/district-council/wyre,30/12/2019,People and Places,Support Services,135B,LYRECO UK LTD,05/12/2019,PE125459,2.82,0.00,LYRECO BUDGET A4 PUNCHED POCKETS 55 MICRON-PACK OF 100,Stationery
Wyre Council,http://opendatacommunities.org/doc/district-council/wyre,30/12/2019,People and Places,Support Services,135B,LYRECO UK LTD,05/12/2019,PE125459,2.40,0.00,LYRECO BUDGET WHITE 8 X 5INCH SHORTHAND NOTEBOOKS (RULED) - PACK OF 20(X80 SHTS),Stationery
Wyre Council,http://opendatacommunities.org/doc/district-council/wyre,30/12/2019,People and Places,Support Services,135B,LYRECO UK LTD,05/12/2019,PE125459,2.88,0.00,LYRECO PLAIN YELLOW STICKY NOTES 76 X 76MM - PACK OF 12 PADS,Stationery
Wyre Council,http://opendatacommunities.org/doc/district-council/wyre,30/12/2019,People and Places,Support Services,135B,LYRECO UK LTD,05/12/2019,PE125459,1.68,0.00,LYRECO PLAIN YELLOW STICKY NOTES 125 X 75MM - PACK OF 12 PADS,Stationery
Wyre Council,http://opendatacommunities.org/doc/district-council/wyre,30/12/2019,People and Places,Support Services,135B,LYRECO UK LTD,05/12/2019,PE125459,0.39,0.00,LYRECO PLAIN YELLOW STICKY NOTES 51 X 38MM - PACK OF 12 PADS,Stationery
Wyre Council,http://opendatacommunities.org/doc/district-council/wyre,30/12/2019,People and Places,Support Services,135B,LYRECO UK LTD,05/12/2019,PE125459,2.04,0.00,LYRECO ASSORTED COLOUR BRIGHT STICKY NOTES 76 X 76MM - PACK OF 6 PADS,Stationery
Wyre Council,http://opendatacommunities.org/doc/district-council/wyre,30/12/2019,People and Places,Support Services,135B,LYRECO UK LTD,05/12/2019,PE125459,7.14,0.00,PK4 EVEREADY BATTERY AA,Stationery
Wyre Council,http://opendatacommunities.org/doc/district-council/wyre,30/12/2019,People and Places,Support Services,135B,LYRECO UK LTD,05/12/2019,PE125459,26.99,0.00,CASIO DF-120 ECO DESK CALCULATOR,Stationery
Wyre Council,http://opendatacommunities.org/doc/district-council/wyre,30/12/2019,Resources,Support Services,135B,LYRECO UK LTD,11/12/2019,RS125456,360.00,0.00,Multi Copy A4 PAPER 80GSM - BOX OF 5 REAMS (5 X 500 SHEETS OF PAPER) 9809881 @ 12.00 per box (150 Reams),Stationery
Wyre Council,http://opendatacommunities.org/doc/district-council/wyre,30/12/2019,Resources,Support Services,135B,LYRECO UK LTD,11/12/2019,RS125456,7.19,0.00,BIC WHITEBOARD MARKERS BULLET TIP ASSORTED COLOURS - PACK OF 4,Stationery
Wyre Council,http://opendatacommunities.org/doc/district-council/wyre,30/12/2019,Resources,Support Services,135B,LYRECO UK LTD,11/12/2019,RS125456,21.80,0.00,PUKKA WHITE A4 WIREBOUND PADS (RULED/MARGIN) - PACK OF 5 (5 X 100 SHEETS),Stationery
Wyre Council,http://opendatacommunities.org/doc/district-council/wyre,30/12/2019,Resources,Support Services,135B,LYRECO UK LTD,11/12/2019,RS125456,15.00,0.00,PUKKA WHITE A5 WIREBOUND PADS (RULED/MARGIN) - PACK OF 5 (5 X 100 SHEETS),Stationery
Wyre Council,http://opendatacommunities.org/doc/district-council/wyre,30/12/2019,Resources,Support Services,135B,LYRECO UK LTD,11/12/2019,RS125456,4.80,0.00,LYRECO RETRACTABLE GEL INK BLACK PENS 0.5MM LINE WIDTH - BOX OF 12,Stationery
Wyre Council,http://opendatacommunities.org/doc/district-council/wyre,30/12/2019,Resources,Support Services,135B,LYRECO UK LTD,11/12/2019,RS125456,9.48,0.00,LYRECO RETRACTABLE GEL INK BLUE PENS 0.5MM LINE WIDTH - BOX OF 12,Stationery
Wyre Council,http://opendatacommunities.org/doc/district-council/wyre,30/12/2019,Resources,Support Services,135B,LYRECO UK LTD,11/12/2019,RS125456,9.48,0.00,LYRECO RETRACTABLE GEL INK RED PENS 0.5MM LINE WIDTH - BOX OF 12,Stationery
Wyre Council,http://opendatacommunities.org/doc/district-council/wyre,30/12/2019,Resources,Support Services,135B,LYRECO UK LTD,11/12/2019,RS125456,17.88,0.00,POST-IT SUPER STICKY NOTES ULTRA YELLOW 76X76MM 12 PAD PACK (90 SHEETS PER PAD),Stationery
Wyre Council,http://opendatacommunities.org/doc/district-council/wyre,30/12/2019,Resources,Support Services,135B,LYRECO UK LTD,11/12/2019,RS125456,14.49,0.00,POST-IT 654-6SS-PNK SUPER STICK 76X76MM FUSH PK6,Stationery
Wyre Council,http://opendatacommunities.org/doc/district-council/wyre,30/12/2019,Resources,Support Services,135B,LYRECO UK LTD,11/12/2019,RS125456,14.48,0.00,POST-IT 654-6SS-AW SUPER STICKY 76X76MM AQUA PK6,Stationery
Wyre Council,http://opendatacommunities.org/doc/district-council/wyre,30/12/2019,Resources,Support Services,135B,LYRECO UK LTD,11/12/2019,RS125456,8.87,0.00,DOUBLE WALL CARD BOARD BOX 384x254x254MM - PACK OF 10,Stationery
Wyre Council,http://opendatacommunities.org/doc/district-council/wyre,30/12/2019,Resources,Support Services,135B,LYRECO UK LTD,11/12/2019,RS125456,8.30,0.00,BOSTIK BLU TACK WHITE TACK ECO PACK 60G,Stationery
Wyre Council,http://opendatacommunities.org/doc/district-council/wyre,30/12/2019,Resources,Support Services,135B,LYRECO UK LTD,11/12/2019,RS125456,2.69,0.00,LYRECO A3 GLOSS LAMINATING POUCHES 150 MICRON (2 X 75) - PACK OF 100,Stationery
Wyre Council,http://opendatacommunities.org/doc/district-council/wyre,30/12/2019,Resources,Support Services,135B,LYRECO UK LTD,11/12/2019,RS125456,9.50,0.00,LYRECO WEEK/VIEW DIARY A5 BLK,Stationery
Wyre Council,http://opendatacommunities.org/doc/district-council/wyre,30/12/2019,Resources,Support Services,135B,LYRECO UK LTD,11/12/2019,RS125456,20.47,0.00,LYRECO ENV 229X162 80G WH WDW S/S BOX OF 500,Stationery
Wyre Council,http://opendatacommunities.org/doc/district-council/wyre,30/12/2019,Resources,Support Services,135B,LYRECO UK LTD,11/12/2019,RS125456,11.10,0.00,STAEDTLER LUMOCOLOR PERMANENT PENS MEDIUM BLACK - BOX OF 10,Stationery
Wyre Council,http://opendatacommunities.org/doc/district-council/wyre,30/12/2019,Resources,Support Services,135B,LYRECO UK LTD,11/12/2019,RS125456,74.38,0.00,FELLOWES OFFICE SUITES MONITOR RISER,Stationery
Wyre Council,http://opendatacommunities.org/doc/district-council/wyre,30/12/2019,People and Places,Current Assets,130B,WATSON FUELS,04/12/2019,PE125455,24951.00,0.00,supply as ordered 25000 litres diesel,Stock - Copse Road Fuel
Wyre Council,http://opendatacommunities.org/doc/district-council/wyre,30/12/2019,Resources,Current Assets,130B,WHISTL UK LIMITED,11/12/2019,RS125667,593.40,0.00,Weekly charges,Stores Purchases
Wyre Council,http://opendatacommunities.org/doc/district-council/wyre,30/12/2019,Resources,Current Assets,130B,WHISTL UK LIMITED,04/12/2019,RS125466,544.10,0.00,Weekly charges,Stores Purchases
Wyre Council,http://opendatacommunities.org/doc/district-council/wyre,30/12/2019,Resources,Current Assets,130B,WHISTL UK LIMITED,17/12/2019,RS125814,264.69,0.00,Weekly charges,Stores Purchases
Wyre Council,http://opendatacommunities.org/doc/district-council/wyre,30/12/2019,People and Places,Highways,133B,JOHN FAUSSET LTD,12/12/2019,PE125550,540.00,0.00,"to supply as already  delivered , 54 concrete posts","Street Furniture, Memorials - (Non BM)"
Wyre Council,http://opendatacommunities.org/doc/district-council/wyre,30/12/2019,People and Places,Cultural and Related Services,132A,WATER PLUS LTD,17/12/2019,PE125033,8.19,0.00,WATER/WASTEWATER CHARGES FOR THE PERIOD 10/6/19-10/10/19,Surface Water/Highway Drainage
Wyre Council,http://opendatacommunities.org/doc/district-council/wyre,30/12/2019,People and Places,Cultural and Related Services,132A,WATER PLUS LTD,17/12/2019,PE125033,163.50,0.00,WATER/WASTEWATER CHARGES FOR THE PERIOD 10/6/19-10/10/19,Surface Water/Highway Drainage
Wyre Council,http://opendatacommunities.org/doc/district-council/wyre,30/12/2019,People and Places,Environmental Services,132B,WATER PLUS LTD,17/12/2019,PE125033,12.09,0.00,WATER/WASTEWATER CHARGES FOR THE PERIOD 10/6/19-10/10/19,Surface Water/Highway Drainage
Wyre Council,http://opendatacommunities.org/doc/district-council/wyre,30/12/2019,People and Places,Environmental Services,132B,WATER PLUS LTD,17/12/2019,PE125033,12.09,0.00,WATER/WASTEWATER CHARGES FOR THE PERIOD 10/6/19-10/10/19,Surface Water/Highway Drainage
Wyre Council,http://opendatacommunities.org/doc/district-council/wyre,30/12/2019,People and Places,Environmental Services,132B,WATER PLUS LTD,17/12/2019,PE125033,615.74,0.00,WATER/WASTEWATER CHARGES FOR THE PERIOD 10/6/19-10/10/19,Surface Water/Highway Drainage
Wyre Council,http://opendatacommunities.org/doc/district-council/wyre,30/12/2019,People and Places,Environmental Services,132B,WATER PLUS LTD,17/12/2019,PE125033,86.98,0.00,WATER/WASTEWATER CHARGES FOR THE PERIOD 10/6/19-10/10/19,Surface Water/Highway Drainage
Wyre Council,http://opendatacommunities.org/doc/district-council/wyre,30/12/2019,People and Places,Planning and Development Servs,132C,WATER PLUS LTD,17/12/2019,PE125033,36.27,0.00,WATER/WASTEWATER CHARGES FOR THE PERIOD 10/6/19-10/10/19,Surface Water/Highway Drainage
Wyre Council,http://opendatacommunities.org/doc/district-council/wyre,30/12/2019,People and Places,Cultural and Related Services,132A,WATER PLUS LTD,17/12/2019,PE125033,12.09,0.00,WATER/WASTEWATER CHARGES FOR THE PERIOD 10/6/19-10/10/19,Surface Water/Highway Drainage
Wyre Council,http://opendatacommunities.org/doc/district-council/wyre,30/12/2019,People and Places,Cultural and Related Services,132A,WATER PLUS LTD,17/12/2019,PE125033,49.16,0.00,WATER/WASTEWATER CHARGES FOR THE PERIOD 10/6/19-10/10/19,Surface Water/Highway Drainage
Wyre Council,http://opendatacommunities.org/doc/district-council/wyre,30/12/2019,People and Places,Cultural and Related Services,132A,WATER PLUS LTD,17/12/2019,PE125033,12.09,0.00,WATER/WASTEWATER CHARGES FOR THE PERIOD 10/6/19-10/10/19,Surface Water/Highway Drainage
Wyre Council,http://opendatacommunities.org/doc/district-council/wyre,30/12/2019,Resources,Housing General Fund,134A,HBINFO LTD,17/12/2019,RS125800,825.00,0.00,Exempt Accommodation Training on 14 January 2020 Manchester3 x delegates @ 275.00 per place with a fourth place free,Technical Training
Wyre Council,http://opendatacommunities.org/doc/district-council/wyre,30/12/2019,People and Places,Support Services,135B,LABC,06/12/2019,PE125532,700.00,0.00,Maria Blundy & Stephen Mawby to attend 2 day LABC Annual Conference 23 & 24 Mach 2020,Technical Training
Wyre Council,http://opendatacommunities.org/doc/district-council/wyre,30/12/2019,Resources,Support Services,135B,MYERSCOUGH COLLEGE,05/12/2019,RS125516,760.00,0.00,Ground Based Chainsaw Operator - Experienced Operator Refresher,Technical Training
Wyre Council,http://opendatacommunities.org/doc/district-council/wyre,30/12/2019,Resources,Planning and Development Servs,132C,DAISY COMMUNICATIONS LTD,20/12/2019,RS125799,1.95,0.00,MONTHLY CHARGES,Telephone - Buildings and Offices
Wyre Council,http://opendatacommunities.org/doc/district-council/wyre,30/12/2019,Resources,Support Services,135B,DAISY COMMUNICATIONS LTD,20/12/2019,RS125799,1.95,0.00,MONTHLY CHARGES,Telephone - Buildings and Offices
Wyre Council,http://opendatacommunities.org/doc/district-council/wyre,30/12/2019,Resources,Cultural and Related Services,132A,DAISY COMMUNICATIONS LTD,20/12/2019,RS125799,53.94,0.00,MONTHLY CHARGES,Telephone - Buildings and Offices
Wyre Council,http://opendatacommunities.org/doc/district-council/wyre,30/12/2019,Resources,Planning and Development Servs,132C,DAISY COMMUNICATIONS LTD,20/12/2019,RS125799,9.48,0.00,MONTHLY CHARGES,Telephone - Buildings and Offices
Wyre Council,http://opendatacommunities.org/doc/district-council/wyre,30/12/2019,Resources,Support Services,135B,DAISY COMMUNICATIONS LTD,20/12/2019,RS125799,29.47,0.00,MONTHLY CHARGES,Telephone - Buildings and Offices
Wyre Council,http://opendatacommunities.org/doc/district-council/wyre,30/12/2019,Resources,Support Services,135B,DAISY COMMUNICATIONS LTD,20/12/2019,RS125799,9.48,0.00,MONTHLY CHARGES,Telephone - Buildings and Offices
Wyre Council,http://opendatacommunities.org/doc/district-council/wyre,30/12/2019,Resources,Support Services,135B,DAISY COMMUNICATIONS LTD,20/12/2019,RS125799,9.48,0.00,MONTHLY CHARGES,Telephone - Buildings and Offices
Wyre Council,http://opendatacommunities.org/doc/district-council/wyre,30/12/2019,Resources,Support Services,135B,DAISY COMMUNICATIONS LTD,20/12/2019,RS125799,1080.03,0.00,MONTHLY CHARGES,Telephone - Buildings and Offices
Wyre Council,http://opendatacommunities.org/doc/district-council/wyre,30/12/2019,Resources,Cultural and Related Services,132A,DAISY COMMUNICATIONS LTD,20/12/2019,RS125799,9.48,0.00,MONTHLY CHARGES,Telephone - Buildings and Offices
Wyre Council,http://opendatacommunities.org/doc/district-council/wyre,30/12/2019,Resources,Cultural and Related Services,132A,DAISY COMMUNICATIONS LTD,20/12/2019,RS125799,9.59,0.00,MONTHLY CHARGES,Telephone - Buildings and Offices
Wyre Council,http://opendatacommunities.org/doc/district-council/wyre,30/12/2019,Resources,Cultural and Related Services,132A,DAISY COMMUNICATIONS LTD,20/12/2019,RS125799,18.96,0.00,MONTHLY CHARGES,Telephone - Buildings and Offices
Wyre Council,http://opendatacommunities.org/doc/district-council/wyre,30/12/2019,Resources,Cultural and Related Services,132A,DAISY COMMUNICATIONS LTD,20/12/2019,RS125799,9.48,0.00,MONTHLY CHARGES,Telephone - Buildings and Offices
Wyre Council,http://opendatacommunities.org/doc/district-council/wyre,30/12/2019,Resources,Cultural and Related Services,132A,DAISY COMMUNICATIONS LTD,20/12/2019,RS125799,59.18,0.00,MONTHLY CHARGES,Telephone - Buildings and Offices
Wyre Council,http://opendatacommunities.org/doc/district-council/wyre,30/12/2019,Resources,Cultural and Related Services,132A,DAISY COMMUNICATIONS LTD,20/12/2019,RS125799,9.67,0.00,MONTHLY CHARGES,Telephone - Buildings and Offices
Wyre Council,http://opendatacommunities.org/doc/district-council/wyre,30/12/2019,Resources,Cultural and Related Services,132A,DAISY COMMUNICATIONS LTD,20/12/2019,RS125799,68.59,0.00,MONTHLY CHARGES,Telephone - Buildings and Offices
Wyre Council,http://opendatacommunities.org/doc/district-council/wyre,30/12/2019,Resources,Environmental Services,132B,DAISY COMMUNICATIONS LTD,20/12/2019,RS125799,9.57,0.00,MONTHLY CHARGES,Telephone - Buildings and Offices
Wyre Council,http://opendatacommunities.org/doc/district-council/wyre,30/12/2019,Resources,Environmental Services,132B,DAISY COMMUNICATIONS LTD,20/12/2019,RS125799,28.44,0.00,MONTHLY CHARGES,Telephone - Buildings and Offices
Wyre Council,http://opendatacommunities.org/doc/district-council/wyre,30/12/2019,Resources,Planning and Development Servs,132C,DAISY COMMUNICATIONS LTD,20/12/2019,RS125799,0.46,0.00,MONTHLY CHARGES,Telephone - Buildings and Offices
Wyre Council,http://opendatacommunities.org/doc/district-council/wyre,30/12/2019,People and Places,Environmental Services,132B,M J WILKINSON,12/12/2019,PE125721,227.36,0.00,Miscellaneous plant hire SEA WALL WORKS,Vehicle Hire
Wyre Council,http://opendatacommunities.org/doc/district-council/wyre,30/12/2019,People and Places,Environmental Services,132B,M J WILKINSON,12/12/2019,PE125720,1893.88,0.00,Miscellaneous plant hire SEA WALL WORKS,Vehicle Hire
Wyre Council,http://opendatacommunities.org/doc/district-council/wyre,30/12/2019,People and Places,Environmental Services,132B,M J WILKINSON,12/12/2019,PE125719,1364.16,0.00,Miscellaneous plant hire SEA WALL WORKS,Vehicle Hire
Wyre Council,http://opendatacommunities.org/doc/district-council/wyre,30/12/2019,People and Places,Environmental Services,132B,M J WILKINSON,12/12/2019,PE125718,454.72,0.00,Miscellaneous plant hire SEA WALL WORKS,Vehicle Hire
Wyre Council,http://opendatacommunities.org/doc/district-council/wyre,30/12/2019,People and Places,Non Service Related Exp,137F,EVANS HALSHAW,13/12/2019,PE125698,18499.67,0.00,1 X Transit Custom 280 L1 Leader 2.0tdci-105ps VanComplete with all the dealer fitted accessories@ 18429.67 + 260.00 Road Fund Licence no vat + 55.00 First Registration Fee no vatDelivery must be after 1st April 2020Delivery to Copse Road D,Vehicles
Wyre Council,http://opendatacommunities.org/doc/district-council/wyre,30/12/2019,People and Places,Non Service Related Exp,137F,EVANS HALSHAW,20/12/2019,PE125698,315.00,0.00,VED,Vehicles
Wyre Council,http://opendatacommunities.org/doc/district-council/wyre,30/12/2019,People and Places,Central Services to the Public,131C,WATER PLUS LTD,17/12/2019,PE125033,73.99,0.00,WATER/WASTEWATER CHARGES FOR THE PERIOD 10/6/19-10/10/19,Water Charges-Metered
Wyre Council,http://opendatacommunities.org/doc/district-council/wyre,30/12/2019,People and Places,Central Services to the Public,131C,WATER PLUS LTD,17/12/2019,PE125033,3.77,0.00,WATER/WASTEWATER CHARGES FOR THE PERIOD 10/6/19-10/10/19,Water Charges-Metered
Wyre Council,http://opendatacommunities.org/doc/district-council/wyre,30/12/2019,People and Places,Cultural and Related Services,132A,WATER PLUS LTD,17/12/2019,PE125033,7.51,0.00,WATER/WASTEWATER CHARGES FOR THE PERIOD 10/6/19-10/10/19,Water Charges-Metered
Wyre Council,http://opendatacommunities.org/doc/district-council/wyre,30/12/2019,People and Places,Cultural and Related Services,132A,WATER PLUS LTD,17/12/2019,PE125033,867.07,0.00,WATER/WASTEWATER CHARGES FOR THE PERIOD 10/6/19-10/10/19,Water Charges-Metered
Wyre Council,http://opendatacommunities.org/doc/district-council/wyre,30/12/2019,People and Places,Cultural and Related Services,132A,WATER PLUS LTD,17/12/2019,PE125033,4.90,0.00,WATER/WASTEWATER CHARGES FOR THE PERIOD 10/6/19-10/10/19,Water Charges-Metered
Wyre Council,http://opendatacommunities.org/doc/district-council/wyre,30/12/2019,People and Places,Cultural and Related Services,132A,WATER PLUS LTD,17/12/2019,PE125033,324.44,0.00,WATER/WASTEWATER CHARGES FOR THE PERIOD 10/6/19-10/10/19,Water Charges-Metered
Wyre Council,http://opendatacommunities.org/doc/district-council/wyre,30/12/2019,People and Places,Cultural and Related Services,132A,WATER PLUS LTD,17/12/2019,PE125033,3.32,0.00,WATER/WASTEWATER CHARGES FOR THE PERIOD 10/6/19-10/10/19,Water Charges-Metered
Wyre Council,http://opendatacommunities.org/doc/district-council/wyre,30/12/2019,People and Places,Cultural and Related Services,132A,WATER PLUS LTD,17/12/2019,PE125033,379.46,0.00,WATER/WASTEWATER CHARGES FOR THE PERIOD 10/6/19-10/10/19,Water Charges-Metered
Wyre Council,http://opendatacommunities.org/doc/district-council/wyre,30/12/2019,People and Places,Cultural and Related Services,132A,WATER PLUS LTD,17/12/2019,PE125033,3.77,0.00,WATER/WASTEWATER CHARGES FOR THE PERIOD 10/6/19-10/10/19,Water Charges-Metered
Wyre Council,http://opendatacommunities.org/doc/district-council/wyre,30/12/2019,People and Places,Cultural and Related Services,132A,WATER PLUS LTD,17/12/2019,PE125033,79.68,0.00,WATER/WASTEWATER CHARGES FOR THE PERIOD 10/6/19-10/10/19,Water Charges-Metered
Wyre Council,http://opendatacommunities.org/doc/district-council/wyre,30/12/2019,People and Places,Cultural and Related Services,132A,WATER PLUS LTD,17/12/2019,PE125033,7.51,0.00,WATER/WASTEWATER CHARGES FOR THE PERIOD 10/6/19-10/10/19,Water Charges-Metered
Wyre Council,http://opendatacommunities.org/doc/district-council/wyre,30/12/2019,People and Places,Cultural and Related Services,132A,WATER PLUS LTD,17/12/2019,PE125033,426.90,0.00,WATER/WASTEWATER CHARGES FOR THE PERIOD 10/6/19-10/10/19,Water Charges-Metered
Wyre Council,http://opendatacommunities.org/doc/district-council/wyre,30/12/2019,People and Places,Cultural and Related Services,132A,WATER PLUS LTD,17/12/2019,PE125033,20.17,0.00,WATER/WASTEWATER CHARGES FOR THE PERIOD 10/6/19-10/10/19,Water Charges-Metered
Wyre Council,http://opendatacommunities.org/doc/district-council/wyre,30/12/2019,People and Places,Cultural and Related Services,132A,WATER PLUS LTD,17/12/2019,PE125033,62.61,0.00,WATER/WASTEWATER CHARGES FOR THE PERIOD 10/6/19-10/10/19,Water Charges-Metered
Wyre Council,http://opendatacommunities.org/doc/district-council/wyre,30/12/2019,People and Places,Cultural and Related Services,132A,WATER PLUS LTD,17/12/2019,PE125033,11.28,0.00,WATER/WASTEWATER CHARGES FOR THE PERIOD 10/6/19-10/10/19,Water Charges-Metered
Wyre Council,http://opendatacommunities.org/doc/district-council/wyre,30/12/2019,People and Places,Cultural and Related Services,132A,WATER PLUS LTD,17/12/2019,PE125033,37.94,0.00,WATER/WASTEWATER CHARGES FOR THE PERIOD 10/6/19-10/10/19,Water Charges-Metered
Wyre Council,http://opendatacommunities.org/doc/district-council/wyre,30/12/2019,People and Places,Cultural and Related Services,132A,WATER PLUS LTD,17/12/2019,PE125033,3.32,0.00,WATER/WASTEWATER CHARGES FOR THE PERIOD 10/6/19-10/10/19,Water Charges-Metered
Wyre Council,http://opendatacommunities.org/doc/district-council/wyre,30/12/2019,People and Places,Cultural and Related Services,132A,WATER PLUS LTD,17/12/2019,PE125033,43.64,0.00,WATER/WASTEWATER CHARGES FOR THE PERIOD 10/6/19-10/10/19,Water Charges-Metered
Wyre Council,http://opendatacommunities.org/doc/district-council/wyre,30/12/2019,People and Places,Cultural and Related Services,132A,WATER PLUS LTD,17/12/2019,PE125033,6.49,0.00,WATER/WASTEWATER CHARGES FOR THE PERIOD 10/6/19-10/10/19,Water Charges-Metered
Wyre Council,http://opendatacommunities.org/doc/district-council/wyre,30/12/2019,People and Places,Cultural and Related Services,132A,WATER PLUS LTD,17/12/2019,PE125033,11.38,0.00,WATER/WASTEWATER CHARGES FOR THE PERIOD 10/6/19-10/10/19,Water Charges-Metered
Wyre Council,http://opendatacommunities.org/doc/district-council/wyre,30/12/2019,People and Places,Cultural and Related Services,132A,WATER PLUS LTD,17/12/2019,PE125033,10.26,0.00,WATER/WASTEWATER CHARGES FOR THE PERIOD 10/6/19-10/10/19,Water Charges-Metered
Wyre Council,http://opendatacommunities.org/doc/district-council/wyre,30/12/2019,People and Places,Environmental Services,132B,WATER PLUS LTD,17/12/2019,PE125033,58.81,0.00,WATER/WASTEWATER CHARGES FOR THE PERIOD 10/6/19-10/10/19,Water Charges-Metered
Wyre Council,http://opendatacommunities.org/doc/district-council/wyre,30/12/2019,People and Places,Environmental Services,132B,WATER PLUS LTD,17/12/2019,PE125033,8.22,0.00,WATER/WASTEWATER CHARGES FOR THE PERIOD 10/6/19-10/10/19,Water Charges-Metered
Wyre Council,http://opendatacommunities.org/doc/district-council/wyre,30/12/2019,People and Places,Environmental Services,132B,WATER PLUS LTD,17/12/2019,PE125033,3.17,0.00,WATER/WASTEWATER CHARGES FOR THE PERIOD 10/6/19-10/10/19,Water Charges-Metered
Wyre Council,http://opendatacommunities.org/doc/district-council/wyre,30/12/2019,People and Places,Environmental Services,132B,WATER PLUS LTD,17/12/2019,PE125033,5.69,0.00,WATER/WASTEWATER CHARGES FOR THE PERIOD 10/6/19-10/10/19,Water Charges-Metered
Wyre Council,http://opendatacommunities.org/doc/district-council/wyre,30/12/2019,People and Places,Environmental Services,132B,WATER PLUS LTD,17/12/2019,PE125033,3.32,0.00,WATER/WASTEWATER CHARGES FOR THE PERIOD 10/6/19-10/10/19,Water Charges-Metered
Wyre Council,http://opendatacommunities.org/doc/district-council/wyre,30/12/2019,People and Places,Environmental Services,132B,WATER PLUS LTD,17/12/2019,PE125033,17.08,0.00,WATER/WASTEWATER CHARGES FOR THE PERIOD 10/6/19-10/10/19,Water Charges-Metered
Wyre Council,http://opendatacommunities.org/doc/district-council/wyre,30/12/2019,People and Places,Environmental Services,132B,WATER PLUS LTD,17/12/2019,PE125033,12.90,0.00,WATER/WASTEWATER CHARGES FOR THE PERIOD 10/6/19-10/10/19,Water Charges-Metered
Wyre Council,http://opendatacommunities.org/doc/district-council/wyre,30/12/2019,People and Places,Environmental Services,132B,WATER PLUS LTD,17/12/2019,PE125033,872.78,0.00,WATER/WASTEWATER CHARGES FOR THE PERIOD 10/6/19-10/10/19,Water Charges-Metered
Wyre Council,http://opendatacommunities.org/doc/district-council/wyre,30/12/2019,People and Places,Environmental Services,132B,WATER PLUS LTD,17/12/2019,PE125033,49.61,0.00,WATER/WASTEWATER CHARGES FOR THE PERIOD 10/6/19-10/10/19,Water Charges-Metered
Wyre Council,http://opendatacommunities.org/doc/district-council/wyre,30/12/2019,People and Places,Planning and Development Servs,132C,WATER PLUS LTD,17/12/2019,PE125033,165.07,0.00,WATER/WASTEWATER CHARGES FOR THE PERIOD 10/6/19-10/10/19,Water Charges-Metered
Wyre Council,http://opendatacommunities.org/doc/district-council/wyre,30/12/2019,People and Places,Planning and Development Servs,132C,WATER PLUS LTD,17/12/2019,PE125033,12.41,0.00,WATER/WASTEWATER CHARGES FOR THE PERIOD 10/6/19-10/10/19,Water Charges-Metered
Wyre Council,http://opendatacommunities.org/doc/district-council/wyre,30/12/2019,People and Places,Planning and Development Servs,132C,WATER PLUS LTD,17/12/2019,PE125033,3.17,0.00,WATER/WASTEWATER CHARGES FOR THE PERIOD 10/6/19-10/10/19,Water Charges-Metered
Wyre Council,http://opendatacommunities.org/doc/district-council/wyre,30/12/2019,People and Places,Support Services,135B,WATER PLUS LTD,17/12/2019,PE125033,311.15,0.00,WATER/WASTEWATER CHARGES FOR THE PERIOD 10/6/19-10/10/19,Water Charges-Metered
Wyre Council,http://opendatacommunities.org/doc/district-council/wyre,30/12/2019,People and Places,Support Services,135B,WATER PLUS LTD,17/12/2019,PE125033,8.90,0.00,WATER/WASTEWATER CHARGES FOR THE PERIOD 10/6/19-10/10/19,Water Charges-Metered
Wyre Council,http://opendatacommunities.org/doc/district-council/wyre,30/12/2019,People and Places,Cultural and Related Services,132A,WATER PLUS LTD,17/12/2019,PE125033,168.85,0.00,WATER/WASTEWATER CHARGES FOR THE PERIOD 10/6/19-10/10/19,Water Charges-Metered
Wyre Council,http://opendatacommunities.org/doc/district-council/wyre,30/12/2019,People and Places,Cultural and Related Services,132A,WATER PLUS LTD,17/12/2019,PE125033,3.17,0.00,WATER/WASTEWATER CHARGES FOR THE PERIOD 10/6/19-10/10/19,Water Charges-Metered
Wyre Council,http://opendatacommunities.org/doc/district-council/wyre,30/12/2019,People and Places,Cultural and Related Services,132A,WATER PLUS LTD,17/12/2019,PE125033,53.12,0.00,WATER/WASTEWATER CHARGES FOR THE PERIOD 10/6/19-10/10/19,Water Charges-Metered
Wyre Council,http://opendatacommunities.org/doc/district-council/wyre,30/12/2019,People and Places,Cultural and Related Services,132A,WATER PLUS LTD,17/12/2019,PE125033,15.32,0.00,WATER/WASTEWATER CHARGES FOR THE PERIOD 10/6/19-10/10/19,Water Charges-Metered
Wyre Council,http://opendatacommunities.org/doc/district-council/wyre,30/12/2019,People and Places,Cultural and Related Services,132A,WATER PLUS LTD,17/12/2019,PE125033,13.28,0.00,WATER/WASTEWATER CHARGES FOR THE PERIOD 10/6/19-10/10/19,Water Charges-Metered
Wyre Council,http://opendatacommunities.org/doc/district-council/wyre,30/12/2019,People and Places,Cultural and Related Services,132A,WATER PLUS LTD,17/12/2019,PE125033,3.17,0.00,WATER/WASTEWATER CHARGES FOR THE PERIOD 10/6/19-10/10/19,Water Charges-Metered
Wyre Council,http://opendatacommunities.org/doc/district-council/wyre,30/12/2019,People and Places,Cultural and Related Services,132A,WATER PLUS LTD,17/12/2019,PE125033,1.90,0.00,WATER/WASTEWATER CHARGES FOR THE PERIOD 10/6/19-10/10/19,Water Charges-Metered
Wyre Council,http://opendatacommunities.org/doc/district-council/wyre,30/12/2019,People and Places,Cultural and Related Services,132A,WATER PLUS LTD,17/12/2019,PE125033,3.32,0.00,WATER/WASTEWATER CHARGES FOR THE PERIOD 10/6/19-10/10/19,Water Charges-Metered
